{"text_format":"3","workbook":"xlsx","n_sheets":4,"sheets":["RESUMO DO ORÇAMENTO ATÉ À DATA","RESUMO DAS DESPESAS MENSAIS","DESPESAS DETALHADAS","DONATIVOS E PATROCÍNIOS"],"not_rendered":{"defined_names":15},"read":"whole","date_system":"1900"}

{"sheet":"RESUMO DO ORÇAMENTO ATÉ À DATA","index":0,"n_rows":17,"n_cols":7,"rows_kept":17,"merged":[[1,1,1,4]]}
[null,"RESUMO DAS DESPESAS MENSAIS"]
[null,"VALOR REAL vs. ORÇAMENTO ATÉ À DATA",{"$nulls":3},"ano",{"$f":"YEAR(TODAY())","v":2019}]
[]
[null,"Código de LR","Título de Conta","Real","Orçamento","€ Restante","% Restante"]
[null,1000,"Publicidade",{"$f":"SUMIF(ResumoDasDespesasMensais[Código de LR],TabelaAtéÀData[[#This Row],[Código de LR]],ResumoDasDespesasMensais[Total])","v":{"v":0,"d":"0.00 €"}},{"v":100000,"d":"100,000.00 €"},{"$f":"IF(TabelaAtéÀData[[#This Row],[Orçamento]]=\"\",\"\",TabelaAtéÀData[[#This Row],[Orçamento]]-TabelaAtéÀData[[#This Row],[Real]])","v":{"v":100000,"d":"100,000.00 €"}},{"$f":"IFERROR(TabelaAtéÀData[[#This Row],[€ Restante]]/TabelaAtéÀData[[#This Row],[Orçamento]],\"\")","v":{"v":1,"d":"100.00%"}}]
[null,2000,"Equipamento de Escritório",{"$f":"SUMIF(ResumoDasDespesasMensais[Código de LR],TabelaAtéÀData[[#This Row],[Código de LR]],ResumoDasDespesasMensais[Total])","v":{"v":0,"d":"0.00 €"}},{"v":100000,"d":"100,000.00 €"},{"$f":"IF(TabelaAtéÀData[[#This Row],[Orçamento]]=\"\",\"\",TabelaAtéÀData[[#This Row],[Orçamento]]-TabelaAtéÀData[[#This Row],[Real]])","v":{"v":100000,"d":"100,000.00 €"}},{"$f":"IFERROR(TabelaAtéÀData[[#This Row],[€ Restante]]/TabelaAtéÀData[[#This Row],[Orçamento]],\"\")","v":{"v":1,"d":"100.00%"}}]
[null,3000,"Impressoras",{"$f":"SUMIF(ResumoDasDespesasMensais[Código de LR],TabelaAtéÀData[[#This Row],[Código de LR]],ResumoDasDespesasMensais[Total])","v":{"v":0,"d":"0.00 €"}},{"v":100000,"d":"100,000.00 €"},{"$f":"IF(TabelaAtéÀData[[#This Row],[Orçamento]]=\"\",\"\",TabelaAtéÀData[[#This Row],[Orçamento]]-TabelaAtéÀData[[#This Row],[Real]])","v":{"v":100000,"d":"100,000.00 €"}},{"$f":"IFERROR(TabelaAtéÀData[[#This Row],[€ Restante]]/TabelaAtéÀData[[#This Row],[Orçamento]],\"\")","v":{"v":1,"d":"100.00%"}}]
[null,4000,"Custos de Servidor",{"$f":"SUMIF(ResumoDasDespesasMensais[Código de LR],TabelaAtéÀData[[#This Row],[Código de LR]],ResumoDasDespesasMensais[Total])","v":{"v":0,"d":"0.00 €"}},{"v":100000,"d":"100,000.00 €"},{"$f":"IF(TabelaAtéÀData[[#This Row],[Orçamento]]=\"\",\"\",TabelaAtéÀData[[#This Row],[Orçamento]]-TabelaAtéÀData[[#This Row],[Real]])","v":{"v":100000,"d":"100,000.00 €"}},{"$f":"IFERROR(TabelaAtéÀData[[#This Row],[€ Restante]]/TabelaAtéÀData[[#This Row],[Orçamento]],\"\")","v":{"v":1,"d":"100.00%"}}]
[null,5000,"Materiais",{"$f":"SUMIF(ResumoDasDespesasMensais[Código de LR],TabelaAtéÀData[[#This Row],[Código de LR]],ResumoDasDespesasMensais[Total])","v":{"v":0,"d":"0.00 €"}},{"v":50000,"d":"50,000.00 €"},{"$f":"IF(TabelaAtéÀData[[#This Row],[Orçamento]]=\"\",\"\",TabelaAtéÀData[[#This Row],[Orçamento]]-TabelaAtéÀData[[#This Row],[Real]])","v":{"v":50000,"d":"50,000.00 €"}},{"$f":"IFERROR(TabelaAtéÀData[[#This Row],[€ Restante]]/TabelaAtéÀData[[#This Row],[Orçamento]],\"\")","v":{"v":1,"d":"100.00%"}}]
[null,6000,"Despesas com Clientes",{"$f":"SUMIF(ResumoDasDespesasMensais[Código de LR],TabelaAtéÀData[[#This Row],[Código de LR]],ResumoDasDespesasMensais[Total])","v":{"v":0,"d":"0.00 €"}},{"v":25000,"d":"25,000.00 €"},{"$f":"IF(TabelaAtéÀData[[#This Row],[Orçamento]]=\"\",\"\",TabelaAtéÀData[[#This Row],[Orçamento]]-TabelaAtéÀData[[#This Row],[Real]])","v":{"v":25000,"d":"25,000.00 €"}},{"$f":"IFERROR(TabelaAtéÀData[[#This Row],[€ Restante]]/TabelaAtéÀData[[#This Row],[Orçamento]],\"\")","v":{"v":1,"d":"100.00%"}}]
[null,7000,"Computadores",{"$f":"SUMIF(ResumoDasDespesasMensais[Código de LR],TabelaAtéÀData[[#This Row],[Código de LR]],ResumoDasDespesasMensais[Total])","v":{"v":0,"d":"0.00 €"}},{"v":75000,"d":"75,000.00 €"},{"$f":"IF(TabelaAtéÀData[[#This Row],[Orçamento]]=\"\",\"\",TabelaAtéÀData[[#This Row],[Orçamento]]-TabelaAtéÀData[[#This Row],[Real]])","v":{"v":75000,"d":"75,000.00 €"}},{"$f":"IFERROR(TabelaAtéÀData[[#This Row],[€ Restante]]/TabelaAtéÀData[[#This Row],[Orçamento]],\"\")","v":{"v":1,"d":"100.00%"}}]
[null,8000,"Plano Médico",{"$f":"SUMIF(ResumoDasDespesasMensais[Código de LR],TabelaAtéÀData[[#This Row],[Código de LR]],ResumoDasDespesasMensais[Total])","v":{"v":0,"d":"0.00 €"}},{"v":65000,"d":"65,000.00 €"},{"$f":"IF(TabelaAtéÀData[[#This Row],[Orçamento]]=\"\",\"\",TabelaAtéÀData[[#This Row],[Orçamento]]-TabelaAtéÀData[[#This Row],[Real]])","v":{"v":65000,"d":"65,000.00 €"}},{"$f":"IFERROR(TabelaAtéÀData[[#This Row],[€ Restante]]/TabelaAtéÀData[[#This Row],[Orçamento]],\"\")","v":{"v":1,"d":"100.00%"}}]
[null,9000,"Custos de Construção",{"$f":"SUMIF(ResumoDasDespesasMensais[Código de LR],TabelaAtéÀData[[#This Row],[Código de LR]],ResumoDasDespesasMensais[Total])","v":{"v":0,"d":"0.00 €"}},{"v":125000,"d":"125,000.00 €"},{"$f":"IF(TabelaAtéÀData[[#This Row],[Orçamento]]=\"\",\"\",TabelaAtéÀData[[#This Row],[Orçamento]]-TabelaAtéÀData[[#This Row],[Real]])","v":{"v":125000,"d":"125,000.00 €"}},{"$f":"IFERROR(TabelaAtéÀData[[#This Row],[€ Restante]]/TabelaAtéÀData[[#This Row],[Orçamento]],\"\")","v":{"v":1,"d":"100.00%"}}]
[null,10000,"Marketing",{"$f":"SUMIF(ResumoDasDespesasMensais[Código de LR],TabelaAtéÀData[[#This Row],[Código de LR]],ResumoDasDespesasMensais[Total])","v":{"v":0,"d":"0.00 €"}},{"v":100000,"d":"100,000.00 €"},{"$f":"IF(TabelaAtéÀData[[#This Row],[Orçamento]]=\"\",\"\",TabelaAtéÀData[[#This Row],[Orçamento]]-TabelaAtéÀData[[#This Row],[Real]])","v":{"v":100000,"d":"100,000.00 €"}},{"$f":"IFERROR(TabelaAtéÀData[[#This Row],[€ Restante]]/TabelaAtéÀData[[#This Row],[Orçamento]],\"\")","v":{"v":1,"d":"100.00%"}}]
[null,11000,"Instituições de Caridade",{"$f":"SUMIF(ResumoDasDespesasMensais[Código de LR],TabelaAtéÀData[[#This Row],[Código de LR]],ResumoDasDespesasMensais[Total])","v":{"v":0,"d":"0.00 €"}},{"v":250000,"d":"250,000.00 €"},{"$f":"IF(TabelaAtéÀData[[#This Row],[Orçamento]]=\"\",\"\",TabelaAtéÀData[[#This Row],[Orçamento]]-TabelaAtéÀData[[#This Row],[Real]])","v":{"v":250000,"d":"250,000.00 €"}},{"$f":"IFERROR(TabelaAtéÀData[[#This Row],[€ Restante]]/TabelaAtéÀData[[#This Row],[Orçamento]],\"\")","v":{"v":1,"d":"100.00%"}}]
[null,12000,"Patrocinadores",{"$f":"SUMIF(ResumoDasDespesasMensais[Código de LR],TabelaAtéÀData[[#This Row],[Código de LR]],ResumoDasDespesasMensais[Total])","v":{"v":0,"d":"0.00 €"}},{"v":50000,"d":"50,000.00 €"},{"$f":"IF(TabelaAtéÀData[[#This Row],[Orçamento]]=\"\",\"\",TabelaAtéÀData[[#This Row],[Orçamento]]-TabelaAtéÀData[[#This Row],[Real]])","v":{"v":50000,"d":"50,000.00 €"}},{"$f":"IFERROR(TabelaAtéÀData[[#This Row],[€ Restante]]/TabelaAtéÀData[[#This Row],[Orçamento]],\"\")","v":{"v":1,"d":"100.00%"}}]
[null,"Total",null,{"$f":"SUBTOTAL(109,TabelaAtéÀData[Real])","v":{"v":0,"d":"0.00 €"}},{"$f":"SUBTOTAL(109,TabelaAtéÀData[Orçamento])","v":{"v":1140000,"d":"1,140,000.00 €"}},{"$f":"SUBTOTAL(109,TabelaAtéÀData[€ Restante])","v":{"v":1140000,"d":"1,140,000.00 €"}},{"$f":"TabelaAtéÀData[[#Totals],[€ Restante]]/TabelaAtéÀData[[#Totals],[Orçamento]]","v":{"v":1,"d":"100.00%"}}]

{"sheet":"RESUMO DAS DESPESAS MENSAIS","index":1,"n_rows":18,"n_cols":17,"rows_kept":18,"merged":[[1,1,1,16]]}
[null,"RESUMO DO ORÇAMENTO ATÉ À DATA","DESPESAS DETALHADAS"]
[null,"RESUMO DAS DESPESAS MENSAIS"]
[null,"A segmentação de dados para filtrar dados por Títulos de Conta encontra-se nesta célula.",null,{"$f":"DATEVALUE(\"1-JAN\"&_xlfn.SINGLE(_ANO))","v":"2019-01-01"},{"$f":"DATEVALUE(\"1-FEV\"&_ANO)","v":"2019-02-01"},{"$f":"DATEVALUE(\"1-MAR\"&_ANO)","v":"2019-03-01"},{"$f":"DATEVALUE(\"1-ABR\"&_ANO)","v":"2019-04-01"},{"$f":"DATEVALUE(\"1-MAI\"&_ANO)","v":"2019-05-01"},{"$f":"DATEVALUE(\"1-JUN\"&_ANO)","v":"2019-06-01"},{"$f":"DATEVALUE(\"1-JUL\"&_ANO)","v":"2019-07-01"},{"$f":"DATEVALUE(\"1-AGO\"&_ANO)","v":"2019-08-01"},{"$f":"DATEVALUE(\"1-SET\"&_ANO)","v":"2019-09-01"},{"$f":"DATEVALUE(\"1-OUT\"&_ANO)","v":"2019-10-01"},{"$f":"DATEVALUE(\"1-NOV\"&_ANO)","v":"2019-11-01"},{"$f":"DATEVALUE(\"1-DEZ\"&_ANO)","v":"2019-12-01"}]
[{"$nulls":3},{"$f":"EOMONTH(D3,0)","v":"2019-01-31"},{"$f":"EOMONTH(E3,0)","v":"2019-02-28"},{"$f":"EOMONTH(F3,0)","v":"2019-03-31"},{"$f":"EOMONTH(G3,0)","v":"2019-04-30"},{"$f":"EOMONTH(H3,0)","v":"2019-05-31"},{"$f":"EOMONTH(I3,0)","v":"2019-06-30"},"2019-07-31","2019-08-31","2019-09-30","2019-10-31","2019-11-30","2019-12-31"]
[null,"Código de LR","Título de Conta","Janeiro","Fevereiro","Março","Abril","Maio","Junho","Julho","Agosto","Setembro","Outubro","Novembro","Dezembro","Total"," "]
[null,1000,"Publicidade",{"$f":"SUMIFS(DespesasDetalhadas[Montante do Cheque],DespesasDetalhadas[Código de LR],ResumoDasDespesasMensais[[#This Row],[Código de LR]],DespesasDetalhadas[Data da Fatura],\">=\"&D$3,DespesasDetalhadas[Data da Fatura],\"<=\"&D$4)+SUMIFS(Outros[Montante do Cheque],Outros[Código de LR],ResumoDasDespesasMensais[[#This Row],[Código de LR]],Outros[Data de Início do Pedido de Cheque],\">=\"&DATEVALUE(\"1/\"&ResumoDasDespesasMensais[[#Headers],[Janeiro]]&_xlfn.SINGLE(_ANO)),Outros[Data de Início do Pedido de Cheque],\"<=\"&D$4)","v":{"v":0,"d":"0.00 €"}},{"$f":"SUMIFS(DespesasDetalhadas[Montante do Cheque],DespesasDetalhadas[Código de LR],ResumoDasDespesasMensais[[#This Row],[Código de LR]],DespesasDetalhadas[Data da Fatura],\">=\"&E$3,DespesasDetalhadas[Data da Fatura],\"<=\"&E$4)+SUMIFS(Outros[Montante do Cheque],Outros[Código de LR],ResumoDasDespesasMensais[[#This Row],[Código de LR]],Outros[Data de Início do Pedido de Cheque],\">=\"&DATEVALUE(\"1/\"&ResumoDasDespesasMensais[[#Headers],[Fevereiro]]&_xlfn.SINGLE(_ANO)),Outros[Data de Início do Pedido de Cheque],\"<=\"&E$4)","v":{"v":0,"d":"0.00 €"}},{"$f":"SUMIFS(DespesasDetalhadas[Montante do Cheque],DespesasDetalhadas[Código de LR],ResumoDasDespesasMensais[[#This Row],[Código de LR]],DespesasDetalhadas[Data da Fatura],\">=\"&F$3,DespesasDetalhadas[Data da Fatura],\"<=\"&F$4)+SUMIFS(Outros[Montante do Cheque],Outros[Código de LR],ResumoDasDespesasMensais[[#This Row],[Código de LR]],Outros[Data de Início do Pedido de Cheque],\">=\"&DATEVALUE(\"1/\"&ResumoDasDespesasMensais[[#Headers],[Março]]&_xlfn.SINGLE(_ANO)),Outros[Data de Início do Pedido de Cheque],\"<=\"&F$4)","v":{"v":0,"d":"0.00 €"}},{"$f":"SUMIFS(DespesasDetalhadas[Montante do Cheque],DespesasDetalhadas[Código de LR],ResumoDasDespesasMensais[[#This Row],[Código de LR]],DespesasDetalhadas[Data da Fatura],\">=\"&G$3,DespesasDetalhadas[Data da Fatura],\"<=\"&G$4)+SUMIFS(Outros[Montante do Cheque],Outros[Código de LR],ResumoDasDespesasMensais[[#This Row],[Código de LR]],Outros[Data de Início do Pedido de Cheque],\">=\"&DATEVALUE(\"1/\"&ResumoDasDespesasMensais[[#Headers],[Abril]]&_xlfn.SINGLE(_ANO)),Outros[Data de Início do Pedido de Cheque],\"<=\"&G$4)","v":{"v":0,"d":"0.00 €"}},{"$f":"SUMIFS(DespesasDetalhadas[Montante do Cheque],DespesasDetalhadas[Código de LR],ResumoDasDespesasMensais[[#This Row],[Código de LR]],DespesasDetalhadas[Data da Fatura],\">=\"&H$3,DespesasDetalhadas[Data da Fatura],\"<=\"&H$4)+SUMIFS(Outros[Montante do Cheque],Outros[Código de LR],ResumoDasDespesasMensais[[#This Row],[Código de LR]],Outros[Data de Início do Pedido de Cheque],\">=\"&DATEVALUE(\"1/\"&ResumoDasDespesasMensais[[#Headers],[Maio]]&_xlfn.SINGLE(_ANO)),Outros[Data de Início do Pedido de Cheque],\"<=\"&H$4)","v":{"v":0,"d":"0.00 €"}},{"$f":"SUMIFS(DespesasDetalhadas[Montante do Cheque],DespesasDetalhadas[Código de LR],ResumoDasDespesasMensais[[#This Row],[Código de LR]],DespesasDetalhadas[Data da Fatura],\">=\"&I$3,DespesasDetalhadas[Data da Fatura],\"<=\"&I$4)+SUMIFS(Outros[Montante do Cheque],Outros[Código de LR],ResumoDasDespesasMensais[[#This Row],[Código de LR]],Outros[Data de Início do Pedido de Cheque],\">=\"&DATEVALUE(\"1/\"&ResumoDasDespesasMensais[[#Headers],[Junho]]&_xlfn.SINGLE(_ANO)),Outros[Data de Início do Pedido de Cheque],\"<=\"&I$4)","v":{"v":0,"d":"0.00 €"}},{"$f":"SUMIFS(DespesasDetalhadas[Montante do Cheque],DespesasDetalhadas[Código de LR],ResumoDasDespesasMensais[[#This Row],[Código de LR]],DespesasDetalhadas[Data da Fatura],\">=\"&J$3,DespesasDetalhadas[Data da Fatura],\"<=\"&J$4)+SUMIFS(Outros[Montante do Cheque],Outros[Código de LR],ResumoDasDespesasMensais[[#This Row],[Código de LR]],Outros[Data de Início do Pedido de Cheque],\">=\"&DATEVALUE(\"1/\"&ResumoDasDespesasMensais[[#Headers],[Julho]]&_xlfn.SINGLE(_ANO)),Outros[Data de Início do Pedido de Cheque],\"<=\"&J$4)","v":{"v":0,"d":"0.00 €"}},{"$f":"SUMIFS(DespesasDetalhadas[Montante do Cheque],DespesasDetalhadas[Código de LR],ResumoDasDespesasMensais[[#This Row],[Código de LR]],DespesasDetalhadas[Data da Fatura],\">=\"&K$3,DespesasDetalhadas[Data da Fatura],\"<=\"&K$4)+SUMIFS(Outros[Montante do Cheque],Outros[Código de LR],ResumoDasDespesasMensais[[#This Row],[Código de LR]],Outros[Data de Início do Pedido de Cheque],\">=\"&DATEVALUE(\"1/\"&ResumoDasDespesasMensais[[#Headers],[Agosto]]&_xlfn.SINGLE(_ANO)),Outros[Data de Início do Pedido de Cheque],\"<=\"&K$4)","v":{"v":0,"d":"0.00 €"}},{"$f":"SUMIFS(DespesasDetalhadas[Montante do Cheque],DespesasDetalhadas[Código de LR],ResumoDasDespesasMensais[[#This Row],[Código de LR]],DespesasDetalhadas[Data da Fatura],\">=\"&L$3,DespesasDetalhadas[Data da Fatura],\"<=\"&L$4)+SUMIFS(Outros[Montante do Cheque],Outros[Código de LR],ResumoDasDespesasMensais[[#This Row],[Código de LR]],Outros[Data de Início do Pedido de Cheque],\">=\"&DATEVALUE(\"1/\"&ResumoDasDespesasMensais[[#Headers],[Setembro]]&_xlfn.SINGLE(_ANO)),Outros[Data de Início do Pedido de Cheque],\"<=\"&L$4)","v":{"v":0,"d":"0.00 €"}},{"$f":"SUMIFS(DespesasDetalhadas[Montante do Cheque],DespesasDetalhadas[Código de LR],ResumoDasDespesasMensais[[#This Row],[Código de LR]],DespesasDetalhadas[Data da Fatura],\">=\"&M$3,DespesasDetalhadas[Data da Fatura],\"<=\"&M$4)+SUMIFS(Outros[Montante do Cheque],Outros[Código de LR],ResumoDasDespesasMensais[[#This Row],[Código de LR]],Outros[Data de Início do Pedido de Cheque],\">=\"&DATEVALUE(\"1/\"&ResumoDasDespesasMensais[[#Headers],[Outubro]]&_xlfn.SINGLE(_ANO)),Outros[Data de Início do Pedido de Cheque],\"<=\"&M$4)","v":{"v":0,"d":"0.00 €"}},{"$f":"SUMIFS(DespesasDetalhadas[Montante do Cheque],DespesasDetalhadas[Código de LR],ResumoDasDespesasMensais[[#This Row],[Código de LR]],DespesasDetalhadas[Data da Fatura],\">=\"&N$3,DespesasDetalhadas[Data da Fatura],\"<=\"&N$4)+SUMIFS(Outros[Montante do Cheque],Outros[Código de LR],ResumoDasDespesasMensais[[#This Row],[Código de LR]],Outros[Data de Início do Pedido de Cheque],\">=\"&DATEVALUE(\"1/\"&ResumoDasDespesasMensais[[#Headers],[Novembro]]&_xlfn.SINGLE(_ANO)),Outros[Data de Início do Pedido de Cheque],\"<=\"&N$4)","v":{"v":0,"d":"0.00 €"}},{"$f":"SUMIFS(DespesasDetalhadas[Montante do Cheque],DespesasDetalhadas[Código de LR],ResumoDasDespesasMensais[[#This Row],[Código de LR]],DespesasDetalhadas[Data da Fatura],\">=\"&O$3,DespesasDetalhadas[Data da Fatura],\"<=\"&O$4)+SUMIFS(Outros[Montante do Cheque],Outros[Código de LR],ResumoDasDespesasMensais[[#This Row],[Código de LR]],Outros[Data de Início do Pedido de Cheque],\">=\"&DATEVALUE(\"1/\"&ResumoDasDespesasMensais[[#Headers],[Dezembro]]&_xlfn.SINGLE(_ANO)),Outros[Data de Início do Pedido de Cheque],\"<=\"&O$4)","v":{"v":0,"d":"0.00 €"}},{"$f":"SUM(ResumoDasDespesasMensais[[#This Row],[Janeiro]:[Dezembro]])","v":{"v":0,"d":"0.00 €"}}]
[null,2000,"Equipamento de Escritório",{"$f":"SUMIFS(DespesasDetalhadas[Montante do Cheque],DespesasDetalhadas[Código de LR],ResumoDasDespesasMensais[[#This Row],[Código de LR]],DespesasDetalhadas[Data da Fatura],\">=\"&D$3,DespesasDetalhadas[Data da Fatura],\"<=\"&D$4)+SUMIFS(Outros[Montante do Cheque],Outros[Código de LR],ResumoDasDespesasMensais[[#This Row],[Código de LR]],Outros[Data de Início do Pedido de Cheque],\">=\"&DATEVALUE(\"1/\"&ResumoDasDespesasMensais[[#Headers],[Janeiro]]&_xlfn.SINGLE(_ANO)),Outros[Data de Início do Pedido de Cheque],\"<=\"&D$4)","v":{"v":0,"d":"0.00 €"}},{"$f":"SUMIFS(DespesasDetalhadas[Montante do Cheque],DespesasDetalhadas[Código de LR],ResumoDasDespesasMensais[[#This Row],[Código de LR]],DespesasDetalhadas[Data da Fatura],\">=\"&E$3,DespesasDetalhadas[Data da Fatura],\"<=\"&E$4)+SUMIFS(Outros[Montante do Cheque],Outros[Código de LR],ResumoDasDespesasMensais[[#This Row],[Código de LR]],Outros[Data de Início do Pedido de Cheque],\">=\"&DATEVALUE(\"1/\"&ResumoDasDespesasMensais[[#Headers],[Fevereiro]]&_xlfn.SINGLE(_ANO)),Outros[Data de Início do Pedido de Cheque],\"<=\"&E$4)","v":{"v":0,"d":"0.00 €"}},{"$f":"SUMIFS(DespesasDetalhadas[Montante do Cheque],DespesasDetalhadas[Código de LR],ResumoDasDespesasMensais[[#This Row],[Código de LR]],DespesasDetalhadas[Data da Fatura],\">=\"&F$3,DespesasDetalhadas[Data da Fatura],\"<=\"&F$4)+SUMIFS(Outros[Montante do Cheque],Outros[Código de LR],ResumoDasDespesasMensais[[#This Row],[Código de LR]],Outros[Data de Início do Pedido de Cheque],\">=\"&DATEVALUE(\"1/\"&ResumoDasDespesasMensais[[#Headers],[Março]]&_xlfn.SINGLE(_ANO)),Outros[Data de Início do Pedido de Cheque],\"<=\"&F$4)","v":{"v":0,"d":"0.00 €"}},{"$f":"SUMIFS(DespesasDetalhadas[Montante do Cheque],DespesasDetalhadas[Código de LR],ResumoDasDespesasMensais[[#This Row],[Código de LR]],DespesasDetalhadas[Data da Fatura],\">=\"&G$3,DespesasDetalhadas[Data da Fatura],\"<=\"&G$4)+SUMIFS(Outros[Montante do Cheque],Outros[Código de LR],ResumoDasDespesasMensais[[#This Row],[Código de LR]],Outros[Data de Início do Pedido de Cheque],\">=\"&DATEVALUE(\"1/\"&ResumoDasDespesasMensais[[#Headers],[Abril]]&_xlfn.SINGLE(_ANO)),Outros[Data de Início do Pedido de Cheque],\"<=\"&G$4)","v":{"v":0,"d":"0.00 €"}},{"$f":"SUMIFS(DespesasDetalhadas[Montante do Cheque],DespesasDetalhadas[Código de LR],ResumoDasDespesasMensais[[#This Row],[Código de LR]],DespesasDetalhadas[Data da Fatura],\">=\"&H$3,DespesasDetalhadas[Data da Fatura],\"<=\"&H$4)+SUMIFS(Outros[Montante do Cheque],Outros[Código de LR],ResumoDasDespesasMensais[[#This Row],[Código de LR]],Outros[Data de Início do Pedido de Cheque],\">=\"&DATEVALUE(\"1/\"&ResumoDasDespesasMensais[[#Headers],[Maio]]&_xlfn.SINGLE(_ANO)),Outros[Data de Início do Pedido de Cheque],\"<=\"&H$4)","v":{"v":0,"d":"0.00 €"}},{"$f":"SUMIFS(DespesasDetalhadas[Montante do Cheque],DespesasDetalhadas[Código de LR],ResumoDasDespesasMensais[[#This Row],[Código de LR]],DespesasDetalhadas[Data da Fatura],\">=\"&I$3,DespesasDetalhadas[Data da Fatura],\"<=\"&I$4)+SUMIFS(Outros[Montante do Cheque],Outros[Código de LR],ResumoDasDespesasMensais[[#This Row],[Código de LR]],Outros[Data de Início do Pedido de Cheque],\">=\"&DATEVALUE(\"1/\"&ResumoDasDespesasMensais[[#Headers],[Junho]]&_xlfn.SINGLE(_ANO)),Outros[Data de Início do Pedido de Cheque],\"<=\"&I$4)","v":{"v":0,"d":"0.00 €"}},{"$f":"SUMIFS(DespesasDetalhadas[Montante do Cheque],DespesasDetalhadas[Código de LR],ResumoDasDespesasMensais[[#This Row],[Código de LR]],DespesasDetalhadas[Data da Fatura],\">=\"&J$3,DespesasDetalhadas[Data da Fatura],\"<=\"&J$4)+SUMIFS(Outros[Montante do Cheque],Outros[Código de LR],ResumoDasDespesasMensais[[#This Row],[Código de LR]],Outros[Data de Início do Pedido de Cheque],\">=\"&DATEVALUE(\"1/\"&ResumoDasDespesasMensais[[#Headers],[Julho]]&_xlfn.SINGLE(_ANO)),Outros[Data de Início do Pedido de Cheque],\"<=\"&J$4)","v":{"v":0,"d":"0.00 €"}},{"$f":"SUMIFS(DespesasDetalhadas[Montante do Cheque],DespesasDetalhadas[Código de LR],ResumoDasDespesasMensais[[#This Row],[Código de LR]],DespesasDetalhadas[Data da Fatura],\">=\"&K$3,DespesasDetalhadas[Data da Fatura],\"<=\"&K$4)+SUMIFS(Outros[Montante do Cheque],Outros[Código de LR],ResumoDasDespesasMensais[[#This Row],[Código de LR]],Outros[Data de Início do Pedido de Cheque],\">=\"&DATEVALUE(\"1/\"&ResumoDasDespesasMensais[[#Headers],[Agosto]]&_xlfn.SINGLE(_ANO)),Outros[Data de Início do Pedido de Cheque],\"<=\"&K$4)","v":{"v":0,"d":"0.00 €"}},{"$f":"SUMIFS(DespesasDetalhadas[Montante do Cheque],DespesasDetalhadas[Código de LR],ResumoDasDespesasMensais[[#This Row],[Código de LR]],DespesasDetalhadas[Data da Fatura],\">=\"&L$3,DespesasDetalhadas[Data da Fatura],\"<=\"&L$4)+SUMIFS(Outros[Montante do Cheque],Outros[Código de LR],ResumoDasDespesasMensais[[#This Row],[Código de LR]],Outros[Data de Início do Pedido de Cheque],\">=\"&DATEVALUE(\"1/\"&ResumoDasDespesasMensais[[#Headers],[Setembro]]&_xlfn.SINGLE(_ANO)),Outros[Data de Início do Pedido de Cheque],\"<=\"&L$4)","v":{"v":0,"d":"0.00 €"}},{"$f":"SUMIFS(DespesasDetalhadas[Montante do Cheque],DespesasDetalhadas[Código de LR],ResumoDasDespesasMensais[[#This Row],[Código de LR]],DespesasDetalhadas[Data da Fatura],\">=\"&M$3,DespesasDetalhadas[Data da Fatura],\"<=\"&M$4)+SUMIFS(Outros[Montante do Cheque],Outros[Código de LR],ResumoDasDespesasMensais[[#This Row],[Código de LR]],Outros[Data de Início do Pedido de Cheque],\">=\"&DATEVALUE(\"1/\"&ResumoDasDespesasMensais[[#Headers],[Outubro]]&_xlfn.SINGLE(_ANO)),Outros[Data de Início do Pedido de Cheque],\"<=\"&M$4)","v":{"v":0,"d":"0.00 €"}},{"$f":"SUMIFS(DespesasDetalhadas[Montante do Cheque],DespesasDetalhadas[Código de LR],ResumoDasDespesasMensais[[#This Row],[Código de LR]],DespesasDetalhadas[Data da Fatura],\">=\"&N$3,DespesasDetalhadas[Data da Fatura],\"<=\"&N$4)+SUMIFS(Outros[Montante do Cheque],Outros[Código de LR],ResumoDasDespesasMensais[[#This Row],[Código de LR]],Outros[Data de Início do Pedido de Cheque],\">=\"&DATEVALUE(\"1/\"&ResumoDasDespesasMensais[[#Headers],[Novembro]]&_xlfn.SINGLE(_ANO)),Outros[Data de Início do Pedido de Cheque],\"<=\"&N$4)","v":{"v":0,"d":"0.00 €"}},{"$f":"SUMIFS(DespesasDetalhadas[Montante do Cheque],DespesasDetalhadas[Código de LR],ResumoDasDespesasMensais[[#This Row],[Código de LR]],DespesasDetalhadas[Data da Fatura],\">=\"&O$3,DespesasDetalhadas[Data da Fatura],\"<=\"&O$4)+SUMIFS(Outros[Montante do Cheque],Outros[Código de LR],ResumoDasDespesasMensais[[#This Row],[Código de LR]],Outros[Data de Início do Pedido de Cheque],\">=\"&DATEVALUE(\"1/\"&ResumoDasDespesasMensais[[#Headers],[Dezembro]]&_xlfn.SINGLE(_ANO)),Outros[Data de Início do Pedido de Cheque],\"<=\"&O$4)","v":{"v":0,"d":"0.00 €"}},{"$f":"SUM(ResumoDasDespesasMensais[[#This Row],[Janeiro]:[Dezembro]])","v":{"v":0,"d":"0.00 €"}}]
[null,3000,"Impressoras",{"$f":"SUMIFS(DespesasDetalhadas[Montante do Cheque],DespesasDetalhadas[Código de LR],ResumoDasDespesasMensais[[#This Row],[Código de LR]],DespesasDetalhadas[Data da Fatura],\">=\"&D$3,DespesasDetalhadas[Data da Fatura],\"<=\"&D$4)+SUMIFS(Outros[Montante do Cheque],Outros[Código de LR],ResumoDasDespesasMensais[[#This Row],[Código de LR]],Outros[Data de Início do Pedido de Cheque],\">=\"&DATEVALUE(\"1/\"&ResumoDasDespesasMensais[[#Headers],[Janeiro]]&_xlfn.SINGLE(_ANO)),Outros[Data de Início do Pedido de Cheque],\"<=\"&D$4)","v":{"v":0,"d":"0.00 €"}},{"$f":"SUMIFS(DespesasDetalhadas[Montante do Cheque],DespesasDetalhadas[Código de LR],ResumoDasDespesasMensais[[#This Row],[Código de LR]],DespesasDetalhadas[Data da Fatura],\">=\"&E$3,DespesasDetalhadas[Data da Fatura],\"<=\"&E$4)+SUMIFS(Outros[Montante do Cheque],Outros[Código de LR],ResumoDasDespesasMensais[[#This Row],[Código de LR]],Outros[Data de Início do Pedido de Cheque],\">=\"&DATEVALUE(\"1/\"&ResumoDasDespesasMensais[[#Headers],[Fevereiro]]&_xlfn.SINGLE(_ANO)),Outros[Data de Início do Pedido de Cheque],\"<=\"&E$4)","v":{"v":0,"d":"0.00 €"}},{"$f":"SUMIFS(DespesasDetalhadas[Montante do Cheque],DespesasDetalhadas[Código de LR],ResumoDasDespesasMensais[[#This Row],[Código de LR]],DespesasDetalhadas[Data da Fatura],\">=\"&F$3,DespesasDetalhadas[Data da Fatura],\"<=\"&F$4)+SUMIFS(Outros[Montante do Cheque],Outros[Código de LR],ResumoDasDespesasMensais[[#This Row],[Código de LR]],Outros[Data de Início do Pedido de Cheque],\">=\"&DATEVALUE(\"1/\"&ResumoDasDespesasMensais[[#Headers],[Março]]&_xlfn.SINGLE(_ANO)),Outros[Data de Início do Pedido de Cheque],\"<=\"&F$4)","v":{"v":0,"d":"0.00 €"}},{"$f":"SUMIFS(DespesasDetalhadas[Montante do Cheque],DespesasDetalhadas[Código de LR],ResumoDasDespesasMensais[[#This Row],[Código de LR]],DespesasDetalhadas[Data da Fatura],\">=\"&G$3,DespesasDetalhadas[Data da Fatura],\"<=\"&G$4)+SUMIFS(Outros[Montante do Cheque],Outros[Código de LR],ResumoDasDespesasMensais[[#This Row],[Código de LR]],Outros[Data de Início do Pedido de Cheque],\">=\"&DATEVALUE(\"1/\"&ResumoDasDespesasMensais[[#Headers],[Abril]]&_xlfn.SINGLE(_ANO)),Outros[Data de Início do Pedido de Cheque],\"<=\"&G$4)","v":{"v":0,"d":"0.00 €"}},{"$f":"SUMIFS(DespesasDetalhadas[Montante do Cheque],DespesasDetalhadas[Código de LR],ResumoDasDespesasMensais[[#This Row],[Código de LR]],DespesasDetalhadas[Data da Fatura],\">=\"&H$3,DespesasDetalhadas[Data da Fatura],\"<=\"&H$4)+SUMIFS(Outros[Montante do Cheque],Outros[Código de LR],ResumoDasDespesasMensais[[#This Row],[Código de LR]],Outros[Data de Início do Pedido de Cheque],\">=\"&DATEVALUE(\"1/\"&ResumoDasDespesasMensais[[#Headers],[Maio]]&_xlfn.SINGLE(_ANO)),Outros[Data de Início do Pedido de Cheque],\"<=\"&H$4)","v":{"v":0,"d":"0.00 €"}},{"$f":"SUMIFS(DespesasDetalhadas[Montante do Cheque],DespesasDetalhadas[Código de LR],ResumoDasDespesasMensais[[#This Row],[Código de LR]],DespesasDetalhadas[Data da Fatura],\">=\"&I$3,DespesasDetalhadas[Data da Fatura],\"<=\"&I$4)+SUMIFS(Outros[Montante do Cheque],Outros[Código de LR],ResumoDasDespesasMensais[[#This Row],[Código de LR]],Outros[Data de Início do Pedido de Cheque],\">=\"&DATEVALUE(\"1/\"&ResumoDasDespesasMensais[[#Headers],[Junho]]&_xlfn.SINGLE(_ANO)),Outros[Data de Início do Pedido de Cheque],\"<=\"&I$4)","v":{"v":0,"d":"0.00 €"}},{"$f":"SUMIFS(DespesasDetalhadas[Montante do Cheque],DespesasDetalhadas[Código de LR],ResumoDasDespesasMensais[[#This Row],[Código de LR]],DespesasDetalhadas[Data da Fatura],\">=\"&J$3,DespesasDetalhadas[Data da Fatura],\"<=\"&J$4)+SUMIFS(Outros[Montante do Cheque],Outros[Código de LR],ResumoDasDespesasMensais[[#This Row],[Código de LR]],Outros[Data de Início do Pedido de Cheque],\">=\"&DATEVALUE(\"1/\"&ResumoDasDespesasMensais[[#Headers],[Julho]]&_xlfn.SINGLE(_ANO)),Outros[Data de Início do Pedido de Cheque],\"<=\"&J$4)","v":{"v":0,"d":"0.00 €"}},{"$f":"SUMIFS(DespesasDetalhadas[Montante do Cheque],DespesasDetalhadas[Código de LR],ResumoDasDespesasMensais[[#This Row],[Código de LR]],DespesasDetalhadas[Data da Fatura],\">=\"&K$3,DespesasDetalhadas[Data da Fatura],\"<=\"&K$4)+SUMIFS(Outros[Montante do Cheque],Outros[Código de LR],ResumoDasDespesasMensais[[#This Row],[Código de LR]],Outros[Data de Início do Pedido de Cheque],\">=\"&DATEVALUE(\"1/\"&ResumoDasDespesasMensais[[#Headers],[Agosto]]&_xlfn.SINGLE(_ANO)),Outros[Data de Início do Pedido de Cheque],\"<=\"&K$4)","v":{"v":0,"d":"0.00 €"}},{"$f":"SUMIFS(DespesasDetalhadas[Montante do Cheque],DespesasDetalhadas[Código de LR],ResumoDasDespesasMensais[[#This Row],[Código de LR]],DespesasDetalhadas[Data da Fatura],\">=\"&L$3,DespesasDetalhadas[Data da Fatura],\"<=\"&L$4)+SUMIFS(Outros[Montante do Cheque],Outros[Código de LR],ResumoDasDespesasMensais[[#This Row],[Código de LR]],Outros[Data de Início do Pedido de Cheque],\">=\"&DATEVALUE(\"1/\"&ResumoDasDespesasMensais[[#Headers],[Setembro]]&_xlfn.SINGLE(_ANO)),Outros[Data de Início do Pedido de Cheque],\"<=\"&L$4)","v":{"v":0,"d":"0.00 €"}},{"$f":"SUMIFS(DespesasDetalhadas[Montante do Cheque],DespesasDetalhadas[Código de LR],ResumoDasDespesasMensais[[#This Row],[Código de LR]],DespesasDetalhadas[Data da Fatura],\">=\"&M$3,DespesasDetalhadas[Data da Fatura],\"<=\"&M$4)+SUMIFS(Outros[Montante do Cheque],Outros[Código de LR],ResumoDasDespesasMensais[[#This Row],[Código de LR]],Outros[Data de Início do Pedido de Cheque],\">=\"&DATEVALUE(\"1/\"&ResumoDasDespesasMensais[[#Headers],[Outubro]]&_xlfn.SINGLE(_ANO)),Outros[Data de Início do Pedido de Cheque],\"<=\"&M$4)","v":{"v":0,"d":"0.00 €"}},{"$f":"SUMIFS(DespesasDetalhadas[Montante do Cheque],DespesasDetalhadas[Código de LR],ResumoDasDespesasMensais[[#This Row],[Código de LR]],DespesasDetalhadas[Data da Fatura],\">=\"&N$3,DespesasDetalhadas[Data da Fatura],\"<=\"&N$4)+SUMIFS(Outros[Montante do Cheque],Outros[Código de LR],ResumoDasDespesasMensais[[#This Row],[Código de LR]],Outros[Data de Início do Pedido de Cheque],\">=\"&DATEVALUE(\"1/\"&ResumoDasDespesasMensais[[#Headers],[Novembro]]&_xlfn.SINGLE(_ANO)),Outros[Data de Início do Pedido de Cheque],\"<=\"&N$4)","v":{"v":0,"d":"0.00 €"}},{"$f":"SUMIFS(DespesasDetalhadas[Montante do Cheque],DespesasDetalhadas[Código de LR],ResumoDasDespesasMensais[[#This Row],[Código de LR]],DespesasDetalhadas[Data da Fatura],\">=\"&O$3,DespesasDetalhadas[Data da Fatura],\"<=\"&O$4)+SUMIFS(Outros[Montante do Cheque],Outros[Código de LR],ResumoDasDespesasMensais[[#This Row],[Código de LR]],Outros[Data de Início do Pedido de Cheque],\">=\"&DATEVALUE(\"1/\"&ResumoDasDespesasMensais[[#Headers],[Dezembro]]&_xlfn.SINGLE(_ANO)),Outros[Data de Início do Pedido de Cheque],\"<=\"&O$4)","v":{"v":0,"d":"0.00 €"}},{"$f":"SUM(ResumoDasDespesasMensais[[#This Row],[Janeiro]:[Dezembro]])","v":{"v":0,"d":"0.00 €"}}]
[null,4000,"Custos de Servidor",{"$f":"SUMIFS(DespesasDetalhadas[Montante do Cheque],DespesasDetalhadas[Código de LR],ResumoDasDespesasMensais[[#This Row],[Código de LR]],DespesasDetalhadas[Data da Fatura],\">=\"&D$3,DespesasDetalhadas[Data da Fatura],\"<=\"&D$4)+SUMIFS(Outros[Montante do Cheque],Outros[Código de LR],ResumoDasDespesasMensais[[#This Row],[Código de LR]],Outros[Data de Início do Pedido de Cheque],\">=\"&DATEVALUE(\"1/\"&ResumoDasDespesasMensais[[#Headers],[Janeiro]]&_xlfn.SINGLE(_ANO)),Outros[Data de Início do Pedido de Cheque],\"<=\"&D$4)","v":{"v":0,"d":"0.00 €"}},{"$f":"SUMIFS(DespesasDetalhadas[Montante do Cheque],DespesasDetalhadas[Código de LR],ResumoDasDespesasMensais[[#This Row],[Código de LR]],DespesasDetalhadas[Data da Fatura],\">=\"&E$3,DespesasDetalhadas[Data da Fatura],\"<=\"&E$4)+SUMIFS(Outros[Montante do Cheque],Outros[Código de LR],ResumoDasDespesasMensais[[#This Row],[Código de LR]],Outros[Data de Início do Pedido de Cheque],\">=\"&DATEVALUE(\"1/\"&ResumoDasDespesasMensais[[#Headers],[Fevereiro]]&_xlfn.SINGLE(_ANO)),Outros[Data de Início do Pedido de Cheque],\"<=\"&E$4)","v":{"v":0,"d":"0.00 €"}},{"$f":"SUMIFS(DespesasDetalhadas[Montante do Cheque],DespesasDetalhadas[Código de LR],ResumoDasDespesasMensais[[#This Row],[Código de LR]],DespesasDetalhadas[Data da Fatura],\">=\"&F$3,DespesasDetalhadas[Data da Fatura],\"<=\"&F$4)+SUMIFS(Outros[Montante do Cheque],Outros[Código de LR],ResumoDasDespesasMensais[[#This Row],[Código de LR]],Outros[Data de Início do Pedido de Cheque],\">=\"&DATEVALUE(\"1/\"&ResumoDasDespesasMensais[[#Headers],[Março]]&_xlfn.SINGLE(_ANO)),Outros[Data de Início do Pedido de Cheque],\"<=\"&F$4)","v":{"v":0,"d":"0.00 €"}},{"$f":"SUMIFS(DespesasDetalhadas[Montante do Cheque],DespesasDetalhadas[Código de LR],ResumoDasDespesasMensais[[#This Row],[Código de LR]],DespesasDetalhadas[Data da Fatura],\">=\"&G$3,DespesasDetalhadas[Data da Fatura],\"<=\"&G$4)+SUMIFS(Outros[Montante do Cheque],Outros[Código de LR],ResumoDasDespesasMensais[[#This Row],[Código de LR]],Outros[Data de Início do Pedido de Cheque],\">=\"&DATEVALUE(\"1/\"&ResumoDasDespesasMensais[[#Headers],[Abril]]&_xlfn.SINGLE(_ANO)),Outros[Data de Início do Pedido de Cheque],\"<=\"&G$4)","v":{"v":0,"d":"0.00 €"}},{"$f":"SUMIFS(DespesasDetalhadas[Montante do Cheque],DespesasDetalhadas[Código de LR],ResumoDasDespesasMensais[[#This Row],[Código de LR]],DespesasDetalhadas[Data da Fatura],\">=\"&H$3,DespesasDetalhadas[Data da Fatura],\"<=\"&H$4)+SUMIFS(Outros[Montante do Cheque],Outros[Código de LR],ResumoDasDespesasMensais[[#This Row],[Código de LR]],Outros[Data de Início do Pedido de Cheque],\">=\"&DATEVALUE(\"1/\"&ResumoDasDespesasMensais[[#Headers],[Maio]]&_xlfn.SINGLE(_ANO)),Outros[Data de Início do Pedido de Cheque],\"<=\"&H$4)","v":{"v":0,"d":"0.00 €"}},{"$f":"SUMIFS(DespesasDetalhadas[Montante do Cheque],DespesasDetalhadas[Código de LR],ResumoDasDespesasMensais[[#This Row],[Código de LR]],DespesasDetalhadas[Data da Fatura],\">=\"&I$3,DespesasDetalhadas[Data da Fatura],\"<=\"&I$4)+SUMIFS(Outros[Montante do Cheque],Outros[Código de LR],ResumoDasDespesasMensais[[#This Row],[Código de LR]],Outros[Data de Início do Pedido de Cheque],\">=\"&DATEVALUE(\"1/\"&ResumoDasDespesasMensais[[#Headers],[Junho]]&_xlfn.SINGLE(_ANO)),Outros[Data de Início do Pedido de Cheque],\"<=\"&I$4)","v":{"v":0,"d":"0.00 €"}},{"$f":"SUMIFS(DespesasDetalhadas[Montante do Cheque],DespesasDetalhadas[Código de LR],ResumoDasDespesasMensais[[#This Row],[Código de LR]],DespesasDetalhadas[Data da Fatura],\">=\"&J$3,DespesasDetalhadas[Data da Fatura],\"<=\"&J$4)+SUMIFS(Outros[Montante do Cheque],Outros[Código de LR],ResumoDasDespesasMensais[[#This Row],[Código de LR]],Outros[Data de Início do Pedido de Cheque],\">=\"&DATEVALUE(\"1/\"&ResumoDasDespesasMensais[[#Headers],[Julho]]&_xlfn.SINGLE(_ANO)),Outros[Data de Início do Pedido de Cheque],\"<=\"&J$4)","v":{"v":0,"d":"0.00 €"}},{"$f":"SUMIFS(DespesasDetalhadas[Montante do Cheque],DespesasDetalhadas[Código de LR],ResumoDasDespesasMensais[[#This Row],[Código de LR]],DespesasDetalhadas[Data da Fatura],\">=\"&K$3,DespesasDetalhadas[Data da Fatura],\"<=\"&K$4)+SUMIFS(Outros[Montante do Cheque],Outros[Código de LR],ResumoDasDespesasMensais[[#This Row],[Código de LR]],Outros[Data de Início do Pedido de Cheque],\">=\"&DATEVALUE(\"1/\"&ResumoDasDespesasMensais[[#Headers],[Agosto]]&_xlfn.SINGLE(_ANO)),Outros[Data de Início do Pedido de Cheque],\"<=\"&K$4)","v":{"v":0,"d":"0.00 €"}},{"$f":"SUMIFS(DespesasDetalhadas[Montante do Cheque],DespesasDetalhadas[Código de LR],ResumoDasDespesasMensais[[#This Row],[Código de LR]],DespesasDetalhadas[Data da Fatura],\">=\"&L$3,DespesasDetalhadas[Data da Fatura],\"<=\"&L$4)+SUMIFS(Outros[Montante do Cheque],Outros[Código de LR],ResumoDasDespesasMensais[[#This Row],[Código de LR]],Outros[Data de Início do Pedido de Cheque],\">=\"&DATEVALUE(\"1/\"&ResumoDasDespesasMensais[[#Headers],[Setembro]]&_xlfn.SINGLE(_ANO)),Outros[Data de Início do Pedido de Cheque],\"<=\"&L$4)","v":{"v":0,"d":"0.00 €"}},{"$f":"SUMIFS(DespesasDetalhadas[Montante do Cheque],DespesasDetalhadas[Código de LR],ResumoDasDespesasMensais[[#This Row],[Código de LR]],DespesasDetalhadas[Data da Fatura],\">=\"&M$3,DespesasDetalhadas[Data da Fatura],\"<=\"&M$4)+SUMIFS(Outros[Montante do Cheque],Outros[Código de LR],ResumoDasDespesasMensais[[#This Row],[Código de LR]],Outros[Data de Início do Pedido de Cheque],\">=\"&DATEVALUE(\"1/\"&ResumoDasDespesasMensais[[#Headers],[Outubro]]&_xlfn.SINGLE(_ANO)),Outros[Data de Início do Pedido de Cheque],\"<=\"&M$4)","v":{"v":0,"d":"0.00 €"}},{"$f":"SUMIFS(DespesasDetalhadas[Montante do Cheque],DespesasDetalhadas[Código de LR],ResumoDasDespesasMensais[[#This Row],[Código de LR]],DespesasDetalhadas[Data da Fatura],\">=\"&N$3,DespesasDetalhadas[Data da Fatura],\"<=\"&N$4)+SUMIFS(Outros[Montante do Cheque],Outros[Código de LR],ResumoDasDespesasMensais[[#This Row],[Código de LR]],Outros[Data de Início do Pedido de Cheque],\">=\"&DATEVALUE(\"1/\"&ResumoDasDespesasMensais[[#Headers],[Novembro]]&_xlfn.SINGLE(_ANO)),Outros[Data de Início do Pedido de Cheque],\"<=\"&N$4)","v":{"v":0,"d":"0.00 €"}},{"$f":"SUMIFS(DespesasDetalhadas[Montante do Cheque],DespesasDetalhadas[Código de LR],ResumoDasDespesasMensais[[#This Row],[Código de LR]],DespesasDetalhadas[Data da Fatura],\">=\"&O$3,DespesasDetalhadas[Data da Fatura],\"<=\"&O$4)+SUMIFS(Outros[Montante do Cheque],Outros[Código de LR],ResumoDasDespesasMensais[[#This Row],[Código de LR]],Outros[Data de Início do Pedido de Cheque],\">=\"&DATEVALUE(\"1/\"&ResumoDasDespesasMensais[[#Headers],[Dezembro]]&_xlfn.SINGLE(_ANO)),Outros[Data de Início do Pedido de Cheque],\"<=\"&O$4)","v":{"v":0,"d":"0.00 €"}},{"$f":"SUM(ResumoDasDespesasMensais[[#This Row],[Janeiro]:[Dezembro]])","v":{"v":0,"d":"0.00 €"}}]
[null,5000,"Materiais",{"$f":"SUMIFS(DespesasDetalhadas[Montante do Cheque],DespesasDetalhadas[Código de LR],ResumoDasDespesasMensais[[#This Row],[Código de LR]],DespesasDetalhadas[Data da Fatura],\">=\"&D$3,DespesasDetalhadas[Data da Fatura],\"<=\"&D$4)+SUMIFS(Outros[Montante do Cheque],Outros[Código de LR],ResumoDasDespesasMensais[[#This Row],[Código de LR]],Outros[Data de Início do Pedido de Cheque],\">=\"&DATEVALUE(\"1/\"&ResumoDasDespesasMensais[[#Headers],[Janeiro]]&_xlfn.SINGLE(_ANO)),Outros[Data de Início do Pedido de Cheque],\"<=\"&D$4)","v":{"v":0,"d":"0.00 €"}},{"$f":"SUMIFS(DespesasDetalhadas[Montante do Cheque],DespesasDetalhadas[Código de LR],ResumoDasDespesasMensais[[#This Row],[Código de LR]],DespesasDetalhadas[Data da Fatura],\">=\"&E$3,DespesasDetalhadas[Data da Fatura],\"<=\"&E$4)+SUMIFS(Outros[Montante do Cheque],Outros[Código de LR],ResumoDasDespesasMensais[[#This Row],[Código de LR]],Outros[Data de Início do Pedido de Cheque],\">=\"&DATEVALUE(\"1/\"&ResumoDasDespesasMensais[[#Headers],[Fevereiro]]&_xlfn.SINGLE(_ANO)),Outros[Data de Início do Pedido de Cheque],\"<=\"&E$4)","v":{"v":0,"d":"0.00 €"}},{"$f":"SUMIFS(DespesasDetalhadas[Montante do Cheque],DespesasDetalhadas[Código de LR],ResumoDasDespesasMensais[[#This Row],[Código de LR]],DespesasDetalhadas[Data da Fatura],\">=\"&F$3,DespesasDetalhadas[Data da Fatura],\"<=\"&F$4)+SUMIFS(Outros[Montante do Cheque],Outros[Código de LR],ResumoDasDespesasMensais[[#This Row],[Código de LR]],Outros[Data de Início do Pedido de Cheque],\">=\"&DATEVALUE(\"1/\"&ResumoDasDespesasMensais[[#Headers],[Março]]&_xlfn.SINGLE(_ANO)),Outros[Data de Início do Pedido de Cheque],\"<=\"&F$4)","v":{"v":0,"d":"0.00 €"}},{"$f":"SUMIFS(DespesasDetalhadas[Montante do Cheque],DespesasDetalhadas[Código de LR],ResumoDasDespesasMensais[[#This Row],[Código de LR]],DespesasDetalhadas[Data da Fatura],\">=\"&G$3,DespesasDetalhadas[Data da Fatura],\"<=\"&G$4)+SUMIFS(Outros[Montante do Cheque],Outros[Código de LR],ResumoDasDespesasMensais[[#This Row],[Código de LR]],Outros[Data de Início do Pedido de Cheque],\">=\"&DATEVALUE(\"1/\"&ResumoDasDespesasMensais[[#Headers],[Abril]]&_xlfn.SINGLE(_ANO)),Outros[Data de Início do Pedido de Cheque],\"<=\"&G$4)","v":{"v":0,"d":"0.00 €"}},{"$f":"SUMIFS(DespesasDetalhadas[Montante do Cheque],DespesasDetalhadas[Código de LR],ResumoDasDespesasMensais[[#This Row],[Código de LR]],DespesasDetalhadas[Data da Fatura],\">=\"&H$3,DespesasDetalhadas[Data da Fatura],\"<=\"&H$4)+SUMIFS(Outros[Montante do Cheque],Outros[Código de LR],ResumoDasDespesasMensais[[#This Row],[Código de LR]],Outros[Data de Início do Pedido de Cheque],\">=\"&DATEVALUE(\"1/\"&ResumoDasDespesasMensais[[#Headers],[Maio]]&_xlfn.SINGLE(_ANO)),Outros[Data de Início do Pedido de Cheque],\"<=\"&H$4)","v":{"v":0,"d":"0.00 €"}},{"$f":"SUMIFS(DespesasDetalhadas[Montante do Cheque],DespesasDetalhadas[Código de LR],ResumoDasDespesasMensais[[#This Row],[Código de LR]],DespesasDetalhadas[Data da Fatura],\">=\"&I$3,DespesasDetalhadas[Data da Fatura],\"<=\"&I$4)+SUMIFS(Outros[Montante do Cheque],Outros[Código de LR],ResumoDasDespesasMensais[[#This Row],[Código de LR]],Outros[Data de Início do Pedido de Cheque],\">=\"&DATEVALUE(\"1/\"&ResumoDasDespesasMensais[[#Headers],[Junho]]&_xlfn.SINGLE(_ANO)),Outros[Data de Início do Pedido de Cheque],\"<=\"&I$4)","v":{"v":0,"d":"0.00 €"}},{"$f":"SUMIFS(DespesasDetalhadas[Montante do Cheque],DespesasDetalhadas[Código de LR],ResumoDasDespesasMensais[[#This Row],[Código de LR]],DespesasDetalhadas[Data da Fatura],\">=\"&J$3,DespesasDetalhadas[Data da Fatura],\"<=\"&J$4)+SUMIFS(Outros[Montante do Cheque],Outros[Código de LR],ResumoDasDespesasMensais[[#This Row],[Código de LR]],Outros[Data de Início do Pedido de Cheque],\">=\"&DATEVALUE(\"1/\"&ResumoDasDespesasMensais[[#Headers],[Julho]]&_xlfn.SINGLE(_ANO)),Outros[Data de Início do Pedido de Cheque],\"<=\"&J$4)","v":{"v":0,"d":"0.00 €"}},{"$f":"SUMIFS(DespesasDetalhadas[Montante do Cheque],DespesasDetalhadas[Código de LR],ResumoDasDespesasMensais[[#This Row],[Código de LR]],DespesasDetalhadas[Data da Fatura],\">=\"&K$3,DespesasDetalhadas[Data da Fatura],\"<=\"&K$4)+SUMIFS(Outros[Montante do Cheque],Outros[Código de LR],ResumoDasDespesasMensais[[#This Row],[Código de LR]],Outros[Data de Início do Pedido de Cheque],\">=\"&DATEVALUE(\"1/\"&ResumoDasDespesasMensais[[#Headers],[Agosto]]&_xlfn.SINGLE(_ANO)),Outros[Data de Início do Pedido de Cheque],\"<=\"&K$4)","v":{"v":0,"d":"0.00 €"}},{"$f":"SUMIFS(DespesasDetalhadas[Montante do Cheque],DespesasDetalhadas[Código de LR],ResumoDasDespesasMensais[[#This Row],[Código de LR]],DespesasDetalhadas[Data da Fatura],\">=\"&L$3,DespesasDetalhadas[Data da Fatura],\"<=\"&L$4)+SUMIFS(Outros[Montante do Cheque],Outros[Código de LR],ResumoDasDespesasMensais[[#This Row],[Código de LR]],Outros[Data de Início do Pedido de Cheque],\">=\"&DATEVALUE(\"1/\"&ResumoDasDespesasMensais[[#Headers],[Setembro]]&_xlfn.SINGLE(_ANO)),Outros[Data de Início do Pedido de Cheque],\"<=\"&L$4)","v":{"v":0,"d":"0.00 €"}},{"$f":"SUMIFS(DespesasDetalhadas[Montante do Cheque],DespesasDetalhadas[Código de LR],ResumoDasDespesasMensais[[#This Row],[Código de LR]],DespesasDetalhadas[Data da Fatura],\">=\"&M$3,DespesasDetalhadas[Data da Fatura],\"<=\"&M$4)+SUMIFS(Outros[Montante do Cheque],Outros[Código de LR],ResumoDasDespesasMensais[[#This Row],[Código de LR]],Outros[Data de Início do Pedido de Cheque],\">=\"&DATEVALUE(\"1/\"&ResumoDasDespesasMensais[[#Headers],[Outubro]]&_xlfn.SINGLE(_ANO)),Outros[Data de Início do Pedido de Cheque],\"<=\"&M$4)","v":{"v":0,"d":"0.00 €"}},{"$f":"SUMIFS(DespesasDetalhadas[Montante do Cheque],DespesasDetalhadas[Código de LR],ResumoDasDespesasMensais[[#This Row],[Código de LR]],DespesasDetalhadas[Data da Fatura],\">=\"&N$3,DespesasDetalhadas[Data da Fatura],\"<=\"&N$4)+SUMIFS(Outros[Montante do Cheque],Outros[Código de LR],ResumoDasDespesasMensais[[#This Row],[Código de LR]],Outros[Data de Início do Pedido de Cheque],\">=\"&DATEVALUE(\"1/\"&ResumoDasDespesasMensais[[#Headers],[Novembro]]&_xlfn.SINGLE(_ANO)),Outros[Data de Início do Pedido de Cheque],\"<=\"&N$4)","v":{"v":0,"d":"0.00 €"}},{"$f":"SUMIFS(DespesasDetalhadas[Montante do Cheque],DespesasDetalhadas[Código de LR],ResumoDasDespesasMensais[[#This Row],[Código de LR]],DespesasDetalhadas[Data da Fatura],\">=\"&O$3,DespesasDetalhadas[Data da Fatura],\"<=\"&O$4)+SUMIFS(Outros[Montante do Cheque],Outros[Código de LR],ResumoDasDespesasMensais[[#This Row],[Código de LR]],Outros[Data de Início do Pedido de Cheque],\">=\"&DATEVALUE(\"1/\"&ResumoDasDespesasMensais[[#Headers],[Dezembro]]&_xlfn.SINGLE(_ANO)),Outros[Data de Início do Pedido de Cheque],\"<=\"&O$4)","v":{"v":0,"d":"0.00 €"}},{"$f":"SUM(ResumoDasDespesasMensais[[#This Row],[Janeiro]:[Dezembro]])","v":{"v":0,"d":"0.00 €"}}]
[null,6000,"Despesas com Clientes",{"$f":"SUMIFS(DespesasDetalhadas[Montante do Cheque],DespesasDetalhadas[Código de LR],ResumoDasDespesasMensais[[#This Row],[Código de LR]],DespesasDetalhadas[Data da Fatura],\">=\"&D$3,DespesasDetalhadas[Data da Fatura],\"<=\"&D$4)+SUMIFS(Outros[Montante do Cheque],Outros[Código de LR],ResumoDasDespesasMensais[[#This Row],[Código de LR]],Outros[Data de Início do Pedido de Cheque],\">=\"&DATEVALUE(\"1/\"&ResumoDasDespesasMensais[[#Headers],[Janeiro]]&_xlfn.SINGLE(_ANO)),Outros[Data de Início do Pedido de Cheque],\"<=\"&D$4)","v":{"v":0,"d":"0.00 €"}},{"$f":"SUMIFS(DespesasDetalhadas[Montante do Cheque],DespesasDetalhadas[Código de LR],ResumoDasDespesasMensais[[#This Row],[Código de LR]],DespesasDetalhadas[Data da Fatura],\">=\"&E$3,DespesasDetalhadas[Data da Fatura],\"<=\"&E$4)+SUMIFS(Outros[Montante do Cheque],Outros[Código de LR],ResumoDasDespesasMensais[[#This Row],[Código de LR]],Outros[Data de Início do Pedido de Cheque],\">=\"&DATEVALUE(\"1/\"&ResumoDasDespesasMensais[[#Headers],[Fevereiro]]&_xlfn.SINGLE(_ANO)),Outros[Data de Início do Pedido de Cheque],\"<=\"&E$4)","v":{"v":0,"d":"0.00 €"}},{"$f":"SUMIFS(DespesasDetalhadas[Montante do Cheque],DespesasDetalhadas[Código de LR],ResumoDasDespesasMensais[[#This Row],[Código de LR]],DespesasDetalhadas[Data da Fatura],\">=\"&F$3,DespesasDetalhadas[Data da Fatura],\"<=\"&F$4)+SUMIFS(Outros[Montante do Cheque],Outros[Código de LR],ResumoDasDespesasMensais[[#This Row],[Código de LR]],Outros[Data de Início do Pedido de Cheque],\">=\"&DATEVALUE(\"1/\"&ResumoDasDespesasMensais[[#Headers],[Março]]&_xlfn.SINGLE(_ANO)),Outros[Data de Início do Pedido de Cheque],\"<=\"&F$4)","v":{"v":0,"d":"0.00 €"}},{"$f":"SUMIFS(DespesasDetalhadas[Montante do Cheque],DespesasDetalhadas[Código de LR],ResumoDasDespesasMensais[[#This Row],[Código de LR]],DespesasDetalhadas[Data da Fatura],\">=\"&G$3,DespesasDetalhadas[Data da Fatura],\"<=\"&G$4)+SUMIFS(Outros[Montante do Cheque],Outros[Código de LR],ResumoDasDespesasMensais[[#This Row],[Código de LR]],Outros[Data de Início do Pedido de Cheque],\">=\"&DATEVALUE(\"1/\"&ResumoDasDespesasMensais[[#Headers],[Abril]]&_xlfn.SINGLE(_ANO)),Outros[Data de Início do Pedido de Cheque],\"<=\"&G$4)","v":{"v":0,"d":"0.00 €"}},{"$f":"SUMIFS(DespesasDetalhadas[Montante do Cheque],DespesasDetalhadas[Código de LR],ResumoDasDespesasMensais[[#This Row],[Código de LR]],DespesasDetalhadas[Data da Fatura],\">=\"&H$3,DespesasDetalhadas[Data da Fatura],\"<=\"&H$4)+SUMIFS(Outros[Montante do Cheque],Outros[Código de LR],ResumoDasDespesasMensais[[#This Row],[Código de LR]],Outros[Data de Início do Pedido de Cheque],\">=\"&DATEVALUE(\"1/\"&ResumoDasDespesasMensais[[#Headers],[Maio]]&_xlfn.SINGLE(_ANO)),Outros[Data de Início do Pedido de Cheque],\"<=\"&H$4)","v":{"v":0,"d":"0.00 €"}},{"$f":"SUMIFS(DespesasDetalhadas[Montante do Cheque],DespesasDetalhadas[Código de LR],ResumoDasDespesasMensais[[#This Row],[Código de LR]],DespesasDetalhadas[Data da Fatura],\">=\"&I$3,DespesasDetalhadas[Data da Fatura],\"<=\"&I$4)+SUMIFS(Outros[Montante do Cheque],Outros[Código de LR],ResumoDasDespesasMensais[[#This Row],[Código de LR]],Outros[Data de Início do Pedido de Cheque],\">=\"&DATEVALUE(\"1/\"&ResumoDasDespesasMensais[[#Headers],[Junho]]&_xlfn.SINGLE(_ANO)),Outros[Data de Início do Pedido de Cheque],\"<=\"&I$4)","v":{"v":0,"d":"0.00 €"}},{"$f":"SUMIFS(DespesasDetalhadas[Montante do Cheque],DespesasDetalhadas[Código de LR],ResumoDasDespesasMensais[[#This Row],[Código de LR]],DespesasDetalhadas[Data da Fatura],\">=\"&J$3,DespesasDetalhadas[Data da Fatura],\"<=\"&J$4)+SUMIFS(Outros[Montante do Cheque],Outros[Código de LR],ResumoDasDespesasMensais[[#This Row],[Código de LR]],Outros[Data de Início do Pedido de Cheque],\">=\"&DATEVALUE(\"1/\"&ResumoDasDespesasMensais[[#Headers],[Julho]]&_xlfn.SINGLE(_ANO)),Outros[Data de Início do Pedido de Cheque],\"<=\"&J$4)","v":{"v":0,"d":"0.00 €"}},{"$f":"SUMIFS(DespesasDetalhadas[Montante do Cheque],DespesasDetalhadas[Código de LR],ResumoDasDespesasMensais[[#This Row],[Código de LR]],DespesasDetalhadas[Data da Fatura],\">=\"&K$3,DespesasDetalhadas[Data da Fatura],\"<=\"&K$4)+SUMIFS(Outros[Montante do Cheque],Outros[Código de LR],ResumoDasDespesasMensais[[#This Row],[Código de LR]],Outros[Data de Início do Pedido de Cheque],\">=\"&DATEVALUE(\"1/\"&ResumoDasDespesasMensais[[#Headers],[Agosto]]&_xlfn.SINGLE(_ANO)),Outros[Data de Início do Pedido de Cheque],\"<=\"&K$4)","v":{"v":0,"d":"0.00 €"}},{"$f":"SUMIFS(DespesasDetalhadas[Montante do Cheque],DespesasDetalhadas[Código de LR],ResumoDasDespesasMensais[[#This Row],[Código de LR]],DespesasDetalhadas[Data da Fatura],\">=\"&L$3,DespesasDetalhadas[Data da Fatura],\"<=\"&L$4)+SUMIFS(Outros[Montante do Cheque],Outros[Código de LR],ResumoDasDespesasMensais[[#This Row],[Código de LR]],Outros[Data de Início do Pedido de Cheque],\">=\"&DATEVALUE(\"1/\"&ResumoDasDespesasMensais[[#Headers],[Setembro]]&_xlfn.SINGLE(_ANO)),Outros[Data de Início do Pedido de Cheque],\"<=\"&L$4)","v":{"v":0,"d":"0.00 €"}},{"$f":"SUMIFS(DespesasDetalhadas[Montante do Cheque],DespesasDetalhadas[Código de LR],ResumoDasDespesasMensais[[#This Row],[Código de LR]],DespesasDetalhadas[Data da Fatura],\">=\"&M$3,DespesasDetalhadas[Data da Fatura],\"<=\"&M$4)+SUMIFS(Outros[Montante do Cheque],Outros[Código de LR],ResumoDasDespesasMensais[[#This Row],[Código de LR]],Outros[Data de Início do Pedido de Cheque],\">=\"&DATEVALUE(\"1/\"&ResumoDasDespesasMensais[[#Headers],[Outubro]]&_xlfn.SINGLE(_ANO)),Outros[Data de Início do Pedido de Cheque],\"<=\"&M$4)","v":{"v":0,"d":"0.00 €"}},{"$f":"SUMIFS(DespesasDetalhadas[Montante do Cheque],DespesasDetalhadas[Código de LR],ResumoDasDespesasMensais[[#This Row],[Código de LR]],DespesasDetalhadas[Data da Fatura],\">=\"&N$3,DespesasDetalhadas[Data da Fatura],\"<=\"&N$4)+SUMIFS(Outros[Montante do Cheque],Outros[Código de LR],ResumoDasDespesasMensais[[#This Row],[Código de LR]],Outros[Data de Início do Pedido de Cheque],\">=\"&DATEVALUE(\"1/\"&ResumoDasDespesasMensais[[#Headers],[Novembro]]&_xlfn.SINGLE(_ANO)),Outros[Data de Início do Pedido de Cheque],\"<=\"&N$4)","v":{"v":0,"d":"0.00 €"}},{"$f":"SUMIFS(DespesasDetalhadas[Montante do Cheque],DespesasDetalhadas[Código de LR],ResumoDasDespesasMensais[[#This Row],[Código de LR]],DespesasDetalhadas[Data da Fatura],\">=\"&O$3,DespesasDetalhadas[Data da Fatura],\"<=\"&O$4)+SUMIFS(Outros[Montante do Cheque],Outros[Código de LR],ResumoDasDespesasMensais[[#This Row],[Código de LR]],Outros[Data de Início do Pedido de Cheque],\">=\"&DATEVALUE(\"1/\"&ResumoDasDespesasMensais[[#Headers],[Dezembro]]&_xlfn.SINGLE(_ANO)),Outros[Data de Início do Pedido de Cheque],\"<=\"&O$4)","v":{"v":0,"d":"0.00 €"}},{"$f":"SUM(ResumoDasDespesasMensais[[#This Row],[Janeiro]:[Dezembro]])","v":{"v":0,"d":"0.00 €"}}]
[null,7000,"Computadores",{"$f":"SUMIFS(DespesasDetalhadas[Montante do Cheque],DespesasDetalhadas[Código de LR],ResumoDasDespesasMensais[[#This Row],[Código de LR]],DespesasDetalhadas[Data da Fatura],\">=\"&D$3,DespesasDetalhadas[Data da Fatura],\"<=\"&D$4)+SUMIFS(Outros[Montante do Cheque],Outros[Código de LR],ResumoDasDespesasMensais[[#This Row],[Código de LR]],Outros[Data de Início do Pedido de Cheque],\">=\"&DATEVALUE(\"1/\"&ResumoDasDespesasMensais[[#Headers],[Janeiro]]&_xlfn.SINGLE(_ANO)),Outros[Data de Início do Pedido de Cheque],\"<=\"&D$4)","v":{"v":0,"d":"0.00 €"}},{"$f":"SUMIFS(DespesasDetalhadas[Montante do Cheque],DespesasDetalhadas[Código de LR],ResumoDasDespesasMensais[[#This Row],[Código de LR]],DespesasDetalhadas[Data da Fatura],\">=\"&E$3,DespesasDetalhadas[Data da Fatura],\"<=\"&E$4)+SUMIFS(Outros[Montante do Cheque],Outros[Código de LR],ResumoDasDespesasMensais[[#This Row],[Código de LR]],Outros[Data de Início do Pedido de Cheque],\">=\"&DATEVALUE(\"1/\"&ResumoDasDespesasMensais[[#Headers],[Fevereiro]]&_xlfn.SINGLE(_ANO)),Outros[Data de Início do Pedido de Cheque],\"<=\"&E$4)","v":{"v":0,"d":"0.00 €"}},{"$f":"SUMIFS(DespesasDetalhadas[Montante do Cheque],DespesasDetalhadas[Código de LR],ResumoDasDespesasMensais[[#This Row],[Código de LR]],DespesasDetalhadas[Data da Fatura],\">=\"&F$3,DespesasDetalhadas[Data da Fatura],\"<=\"&F$4)+SUMIFS(Outros[Montante do Cheque],Outros[Código de LR],ResumoDasDespesasMensais[[#This Row],[Código de LR]],Outros[Data de Início do Pedido de Cheque],\">=\"&DATEVALUE(\"1/\"&ResumoDasDespesasMensais[[#Headers],[Março]]&_xlfn.SINGLE(_ANO)),Outros[Data de Início do Pedido de Cheque],\"<=\"&F$4)","v":{"v":0,"d":"0.00 €"}},{"$f":"SUMIFS(DespesasDetalhadas[Montante do Cheque],DespesasDetalhadas[Código de LR],ResumoDasDespesasMensais[[#This Row],[Código de LR]],DespesasDetalhadas[Data da Fatura],\">=\"&G$3,DespesasDetalhadas[Data da Fatura],\"<=\"&G$4)+SUMIFS(Outros[Montante do Cheque],Outros[Código de LR],ResumoDasDespesasMensais[[#This Row],[Código de LR]],Outros[Data de Início do Pedido de Cheque],\">=\"&DATEVALUE(\"1/\"&ResumoDasDespesasMensais[[#Headers],[Abril]]&_xlfn.SINGLE(_ANO)),Outros[Data de Início do Pedido de Cheque],\"<=\"&G$4)","v":{"v":0,"d":"0.00 €"}},{"$f":"SUMIFS(DespesasDetalhadas[Montante do Cheque],DespesasDetalhadas[Código de LR],ResumoDasDespesasMensais[[#This Row],[Código de LR]],DespesasDetalhadas[Data da Fatura],\">=\"&H$3,DespesasDetalhadas[Data da Fatura],\"<=\"&H$4)+SUMIFS(Outros[Montante do Cheque],Outros[Código de LR],ResumoDasDespesasMensais[[#This Row],[Código de LR]],Outros[Data de Início do Pedido de Cheque],\">=\"&DATEVALUE(\"1/\"&ResumoDasDespesasMensais[[#Headers],[Maio]]&_xlfn.SINGLE(_ANO)),Outros[Data de Início do Pedido de Cheque],\"<=\"&H$4)","v":{"v":0,"d":"0.00 €"}},{"$f":"SUMIFS(DespesasDetalhadas[Montante do Cheque],DespesasDetalhadas[Código de LR],ResumoDasDespesasMensais[[#This Row],[Código de LR]],DespesasDetalhadas[Data da Fatura],\">=\"&I$3,DespesasDetalhadas[Data da Fatura],\"<=\"&I$4)+SUMIFS(Outros[Montante do Cheque],Outros[Código de LR],ResumoDasDespesasMensais[[#This Row],[Código de LR]],Outros[Data de Início do Pedido de Cheque],\">=\"&DATEVALUE(\"1/\"&ResumoDasDespesasMensais[[#Headers],[Junho]]&_xlfn.SINGLE(_ANO)),Outros[Data de Início do Pedido de Cheque],\"<=\"&I$4)","v":{"v":0,"d":"0.00 €"}},{"$f":"SUMIFS(DespesasDetalhadas[Montante do Cheque],DespesasDetalhadas[Código de LR],ResumoDasDespesasMensais[[#This Row],[Código de LR]],DespesasDetalhadas[Data da Fatura],\">=\"&J$3,DespesasDetalhadas[Data da Fatura],\"<=\"&J$4)+SUMIFS(Outros[Montante do Cheque],Outros[Código de LR],ResumoDasDespesasMensais[[#This Row],[Código de LR]],Outros[Data de Início do Pedido de Cheque],\">=\"&DATEVALUE(\"1/\"&ResumoDasDespesasMensais[[#Headers],[Julho]]&_xlfn.SINGLE(_ANO)),Outros[Data de Início do Pedido de Cheque],\"<=\"&J$4)","v":{"v":0,"d":"0.00 €"}},{"$f":"SUMIFS(DespesasDetalhadas[Montante do Cheque],DespesasDetalhadas[Código de LR],ResumoDasDespesasMensais[[#This Row],[Código de LR]],DespesasDetalhadas[Data da Fatura],\">=\"&K$3,DespesasDetalhadas[Data da Fatura],\"<=\"&K$4)+SUMIFS(Outros[Montante do Cheque],Outros[Código de LR],ResumoDasDespesasMensais[[#This Row],[Código de LR]],Outros[Data de Início do Pedido de Cheque],\">=\"&DATEVALUE(\"1/\"&ResumoDasDespesasMensais[[#Headers],[Agosto]]&_xlfn.SINGLE(_ANO)),Outros[Data de Início do Pedido de Cheque],\"<=\"&K$4)","v":{"v":0,"d":"0.00 €"}},{"$f":"SUMIFS(DespesasDetalhadas[Montante do Cheque],DespesasDetalhadas[Código de LR],ResumoDasDespesasMensais[[#This Row],[Código de LR]],DespesasDetalhadas[Data da Fatura],\">=\"&L$3,DespesasDetalhadas[Data da Fatura],\"<=\"&L$4)+SUMIFS(Outros[Montante do Cheque],Outros[Código de LR],ResumoDasDespesasMensais[[#This Row],[Código de LR]],Outros[Data de Início do Pedido de Cheque],\">=\"&DATEVALUE(\"1/\"&ResumoDasDespesasMensais[[#Headers],[Setembro]]&_xlfn.SINGLE(_ANO)),Outros[Data de Início do Pedido de Cheque],\"<=\"&L$4)","v":{"v":0,"d":"0.00 €"}},{"$f":"SUMIFS(DespesasDetalhadas[Montante do Cheque],DespesasDetalhadas[Código de LR],ResumoDasDespesasMensais[[#This Row],[Código de LR]],DespesasDetalhadas[Data da Fatura],\">=\"&M$3,DespesasDetalhadas[Data da Fatura],\"<=\"&M$4)+SUMIFS(Outros[Montante do Cheque],Outros[Código de LR],ResumoDasDespesasMensais[[#This Row],[Código de LR]],Outros[Data de Início do Pedido de Cheque],\">=\"&DATEVALUE(\"1/\"&ResumoDasDespesasMensais[[#Headers],[Outubro]]&_xlfn.SINGLE(_ANO)),Outros[Data de Início do Pedido de Cheque],\"<=\"&M$4)","v":{"v":0,"d":"0.00 €"}},{"$f":"SUMIFS(DespesasDetalhadas[Montante do Cheque],DespesasDetalhadas[Código de LR],ResumoDasDespesasMensais[[#This Row],[Código de LR]],DespesasDetalhadas[Data da Fatura],\">=\"&N$3,DespesasDetalhadas[Data da Fatura],\"<=\"&N$4)+SUMIFS(Outros[Montante do Cheque],Outros[Código de LR],ResumoDasDespesasMensais[[#This Row],[Código de LR]],Outros[Data de Início do Pedido de Cheque],\">=\"&DATEVALUE(\"1/\"&ResumoDasDespesasMensais[[#Headers],[Novembro]]&_xlfn.SINGLE(_ANO)),Outros[Data de Início do Pedido de Cheque],\"<=\"&N$4)","v":{"v":0,"d":"0.00 €"}},{"$f":"SUMIFS(DespesasDetalhadas[Montante do Cheque],DespesasDetalhadas[Código de LR],ResumoDasDespesasMensais[[#This Row],[Código de LR]],DespesasDetalhadas[Data da Fatura],\">=\"&O$3,DespesasDetalhadas[Data da Fatura],\"<=\"&O$4)+SUMIFS(Outros[Montante do Cheque],Outros[Código de LR],ResumoDasDespesasMensais[[#This Row],[Código de LR]],Outros[Data de Início do Pedido de Cheque],\">=\"&DATEVALUE(\"1/\"&ResumoDasDespesasMensais[[#Headers],[Dezembro]]&_xlfn.SINGLE(_ANO)),Outros[Data de Início do Pedido de Cheque],\"<=\"&O$4)","v":{"v":0,"d":"0.00 €"}},{"$f":"SUM(ResumoDasDespesasMensais[[#This Row],[Janeiro]:[Dezembro]])","v":{"v":0,"d":"0.00 €"}}]
[null,8000,"Plano Médico",{"$f":"SUMIFS(DespesasDetalhadas[Montante do Cheque],DespesasDetalhadas[Código de LR],ResumoDasDespesasMensais[[#This Row],[Código de LR]],DespesasDetalhadas[Data da Fatura],\">=\"&D$3,DespesasDetalhadas[Data da Fatura],\"<=\"&D$4)+SUMIFS(Outros[Montante do Cheque],Outros[Código de LR],ResumoDasDespesasMensais[[#This Row],[Código de LR]],Outros[Data de Início do Pedido de Cheque],\">=\"&DATEVALUE(\"1/\"&ResumoDasDespesasMensais[[#Headers],[Janeiro]]&_xlfn.SINGLE(_ANO)),Outros[Data de Início do Pedido de Cheque],\"<=\"&D$4)","v":{"v":0,"d":"0.00 €"}},{"$f":"SUMIFS(DespesasDetalhadas[Montante do Cheque],DespesasDetalhadas[Código de LR],ResumoDasDespesasMensais[[#This Row],[Código de LR]],DespesasDetalhadas[Data da Fatura],\">=\"&E$3,DespesasDetalhadas[Data da Fatura],\"<=\"&E$4)+SUMIFS(Outros[Montante do Cheque],Outros[Código de LR],ResumoDasDespesasMensais[[#This Row],[Código de LR]],Outros[Data de Início do Pedido de Cheque],\">=\"&DATEVALUE(\"1/\"&ResumoDasDespesasMensais[[#Headers],[Fevereiro]]&_xlfn.SINGLE(_ANO)),Outros[Data de Início do Pedido de Cheque],\"<=\"&E$4)","v":{"v":0,"d":"0.00 €"}},{"$f":"SUMIFS(DespesasDetalhadas[Montante do Cheque],DespesasDetalhadas[Código de LR],ResumoDasDespesasMensais[[#This Row],[Código de LR]],DespesasDetalhadas[Data da Fatura],\">=\"&F$3,DespesasDetalhadas[Data da Fatura],\"<=\"&F$4)+SUMIFS(Outros[Montante do Cheque],Outros[Código de LR],ResumoDasDespesasMensais[[#This Row],[Código de LR]],Outros[Data de Início do Pedido de Cheque],\">=\"&DATEVALUE(\"1/\"&ResumoDasDespesasMensais[[#Headers],[Março]]&_xlfn.SINGLE(_ANO)),Outros[Data de Início do Pedido de Cheque],\"<=\"&F$4)","v":{"v":0,"d":"0.00 €"}},{"$f":"SUMIFS(DespesasDetalhadas[Montante do Cheque],DespesasDetalhadas[Código de LR],ResumoDasDespesasMensais[[#This Row],[Código de LR]],DespesasDetalhadas[Data da Fatura],\">=\"&G$3,DespesasDetalhadas[Data da Fatura],\"<=\"&G$4)+SUMIFS(Outros[Montante do Cheque],Outros[Código de LR],ResumoDasDespesasMensais[[#This Row],[Código de LR]],Outros[Data de Início do Pedido de Cheque],\">=\"&DATEVALUE(\"1/\"&ResumoDasDespesasMensais[[#Headers],[Abril]]&_xlfn.SINGLE(_ANO)),Outros[Data de Início do Pedido de Cheque],\"<=\"&G$4)","v":{"v":0,"d":"0.00 €"}},{"$f":"SUMIFS(DespesasDetalhadas[Montante do Cheque],DespesasDetalhadas[Código de LR],ResumoDasDespesasMensais[[#This Row],[Código de LR]],DespesasDetalhadas[Data da Fatura],\">=\"&H$3,DespesasDetalhadas[Data da Fatura],\"<=\"&H$4)+SUMIFS(Outros[Montante do Cheque],Outros[Código de LR],ResumoDasDespesasMensais[[#This Row],[Código de LR]],Outros[Data de Início do Pedido de Cheque],\">=\"&DATEVALUE(\"1/\"&ResumoDasDespesasMensais[[#Headers],[Maio]]&_xlfn.SINGLE(_ANO)),Outros[Data de Início do Pedido de Cheque],\"<=\"&H$4)","v":{"v":0,"d":"0.00 €"}},{"$f":"SUMIFS(DespesasDetalhadas[Montante do Cheque],DespesasDetalhadas[Código de LR],ResumoDasDespesasMensais[[#This Row],[Código de LR]],DespesasDetalhadas[Data da Fatura],\">=\"&I$3,DespesasDetalhadas[Data da Fatura],\"<=\"&I$4)+SUMIFS(Outros[Montante do Cheque],Outros[Código de LR],ResumoDasDespesasMensais[[#This Row],[Código de LR]],Outros[Data de Início do Pedido de Cheque],\">=\"&DATEVALUE(\"1/\"&ResumoDasDespesasMensais[[#Headers],[Junho]]&_xlfn.SINGLE(_ANO)),Outros[Data de Início do Pedido de Cheque],\"<=\"&I$4)","v":{"v":0,"d":"0.00 €"}},{"$f":"SUMIFS(DespesasDetalhadas[Montante do Cheque],DespesasDetalhadas[Código de LR],ResumoDasDespesasMensais[[#This Row],[Código de LR]],DespesasDetalhadas[Data da Fatura],\">=\"&J$3,DespesasDetalhadas[Data da Fatura],\"<=\"&J$4)+SUMIFS(Outros[Montante do Cheque],Outros[Código de LR],ResumoDasDespesasMensais[[#This Row],[Código de LR]],Outros[Data de Início do Pedido de Cheque],\">=\"&DATEVALUE(\"1/\"&ResumoDasDespesasMensais[[#Headers],[Julho]]&_xlfn.SINGLE(_ANO)),Outros[Data de Início do Pedido de Cheque],\"<=\"&J$4)","v":{"v":0,"d":"0.00 €"}},{"$f":"SUMIFS(DespesasDetalhadas[Montante do Cheque],DespesasDetalhadas[Código de LR],ResumoDasDespesasMensais[[#This Row],[Código de LR]],DespesasDetalhadas[Data da Fatura],\">=\"&K$3,DespesasDetalhadas[Data da Fatura],\"<=\"&K$4)+SUMIFS(Outros[Montante do Cheque],Outros[Código de LR],ResumoDasDespesasMensais[[#This Row],[Código de LR]],Outros[Data de Início do Pedido de Cheque],\">=\"&DATEVALUE(\"1/\"&ResumoDasDespesasMensais[[#Headers],[Agosto]]&_xlfn.SINGLE(_ANO)),Outros[Data de Início do Pedido de Cheque],\"<=\"&K$4)","v":{"v":0,"d":"0.00 €"}},{"$f":"SUMIFS(DespesasDetalhadas[Montante do Cheque],DespesasDetalhadas[Código de LR],ResumoDasDespesasMensais[[#This Row],[Código de LR]],DespesasDetalhadas[Data da Fatura],\">=\"&L$3,DespesasDetalhadas[Data da Fatura],\"<=\"&L$4)+SUMIFS(Outros[Montante do Cheque],Outros[Código de LR],ResumoDasDespesasMensais[[#This Row],[Código de LR]],Outros[Data de Início do Pedido de Cheque],\">=\"&DATEVALUE(\"1/\"&ResumoDasDespesasMensais[[#Headers],[Setembro]]&_xlfn.SINGLE(_ANO)),Outros[Data de Início do Pedido de Cheque],\"<=\"&L$4)","v":{"v":0,"d":"0.00 €"}},{"$f":"SUMIFS(DespesasDetalhadas[Montante do Cheque],DespesasDetalhadas[Código de LR],ResumoDasDespesasMensais[[#This Row],[Código de LR]],DespesasDetalhadas[Data da Fatura],\">=\"&M$3,DespesasDetalhadas[Data da Fatura],\"<=\"&M$4)+SUMIFS(Outros[Montante do Cheque],Outros[Código de LR],ResumoDasDespesasMensais[[#This Row],[Código de LR]],Outros[Data de Início do Pedido de Cheque],\">=\"&DATEVALUE(\"1/\"&ResumoDasDespesasMensais[[#Headers],[Outubro]]&_xlfn.SINGLE(_ANO)),Outros[Data de Início do Pedido de Cheque],\"<=\"&M$4)","v":{"v":0,"d":"0.00 €"}},{"$f":"SUMIFS(DespesasDetalhadas[Montante do Cheque],DespesasDetalhadas[Código de LR],ResumoDasDespesasMensais[[#This Row],[Código de LR]],DespesasDetalhadas[Data da Fatura],\">=\"&N$3,DespesasDetalhadas[Data da Fatura],\"<=\"&N$4)+SUMIFS(Outros[Montante do Cheque],Outros[Código de LR],ResumoDasDespesasMensais[[#This Row],[Código de LR]],Outros[Data de Início do Pedido de Cheque],\">=\"&DATEVALUE(\"1/\"&ResumoDasDespesasMensais[[#Headers],[Novembro]]&_xlfn.SINGLE(_ANO)),Outros[Data de Início do Pedido de Cheque],\"<=\"&N$4)","v":{"v":0,"d":"0.00 €"}},{"$f":"SUMIFS(DespesasDetalhadas[Montante do Cheque],DespesasDetalhadas[Código de LR],ResumoDasDespesasMensais[[#This Row],[Código de LR]],DespesasDetalhadas[Data da Fatura],\">=\"&O$3,DespesasDetalhadas[Data da Fatura],\"<=\"&O$4)+SUMIFS(Outros[Montante do Cheque],Outros[Código de LR],ResumoDasDespesasMensais[[#This Row],[Código de LR]],Outros[Data de Início do Pedido de Cheque],\">=\"&DATEVALUE(\"1/\"&ResumoDasDespesasMensais[[#Headers],[Dezembro]]&_xlfn.SINGLE(_ANO)),Outros[Data de Início do Pedido de Cheque],\"<=\"&O$4)","v":{"v":0,"d":"0.00 €"}},{"$f":"SUM(ResumoDasDespesasMensais[[#This Row],[Janeiro]:[Dezembro]])","v":{"v":0,"d":"0.00 €"}}]
[null,9000,"Custos de Construção",{"$f":"SUMIFS(DespesasDetalhadas[Montante do Cheque],DespesasDetalhadas[Código de LR],ResumoDasDespesasMensais[[#This Row],[Código de LR]],DespesasDetalhadas[Data da Fatura],\">=\"&D$3,DespesasDetalhadas[Data da Fatura],\"<=\"&D$4)+SUMIFS(Outros[Montante do Cheque],Outros[Código de LR],ResumoDasDespesasMensais[[#This Row],[Código de LR]],Outros[Data de Início do Pedido de Cheque],\">=\"&DATEVALUE(\"1/\"&ResumoDasDespesasMensais[[#Headers],[Janeiro]]&_xlfn.SINGLE(_ANO)),Outros[Data de Início do Pedido de Cheque],\"<=\"&D$4)","v":{"v":0,"d":"0.00 €"}},{"$f":"SUMIFS(DespesasDetalhadas[Montante do Cheque],DespesasDetalhadas[Código de LR],ResumoDasDespesasMensais[[#This Row],[Código de LR]],DespesasDetalhadas[Data da Fatura],\">=\"&E$3,DespesasDetalhadas[Data da Fatura],\"<=\"&E$4)+SUMIFS(Outros[Montante do Cheque],Outros[Código de LR],ResumoDasDespesasMensais[[#This Row],[Código de LR]],Outros[Data de Início do Pedido de Cheque],\">=\"&DATEVALUE(\"1/\"&ResumoDasDespesasMensais[[#Headers],[Fevereiro]]&_xlfn.SINGLE(_ANO)),Outros[Data de Início do Pedido de Cheque],\"<=\"&E$4)","v":{"v":0,"d":"0.00 €"}},{"$f":"SUMIFS(DespesasDetalhadas[Montante do Cheque],DespesasDetalhadas[Código de LR],ResumoDasDespesasMensais[[#This Row],[Código de LR]],DespesasDetalhadas[Data da Fatura],\">=\"&F$3,DespesasDetalhadas[Data da Fatura],\"<=\"&F$4)+SUMIFS(Outros[Montante do Cheque],Outros[Código de LR],ResumoDasDespesasMensais[[#This Row],[Código de LR]],Outros[Data de Início do Pedido de Cheque],\">=\"&DATEVALUE(\"1/\"&ResumoDasDespesasMensais[[#Headers],[Março]]&_xlfn.SINGLE(_ANO)),Outros[Data de Início do Pedido de Cheque],\"<=\"&F$4)","v":{"v":0,"d":"0.00 €"}},{"$f":"SUMIFS(DespesasDetalhadas[Montante do Cheque],DespesasDetalhadas[Código de LR],ResumoDasDespesasMensais[[#This Row],[Código de LR]],DespesasDetalhadas[Data da Fatura],\">=\"&G$3,DespesasDetalhadas[Data da Fatura],\"<=\"&G$4)+SUMIFS(Outros[Montante do Cheque],Outros[Código de LR],ResumoDasDespesasMensais[[#This Row],[Código de LR]],Outros[Data de Início do Pedido de Cheque],\">=\"&DATEVALUE(\"1/\"&ResumoDasDespesasMensais[[#Headers],[Abril]]&_xlfn.SINGLE(_ANO)),Outros[Data de Início do Pedido de Cheque],\"<=\"&G$4)","v":{"v":0,"d":"0.00 €"}},{"$f":"SUMIFS(DespesasDetalhadas[Montante do Cheque],DespesasDetalhadas[Código de LR],ResumoDasDespesasMensais[[#This Row],[Código de LR]],DespesasDetalhadas[Data da Fatura],\">=\"&H$3,DespesasDetalhadas[Data da Fatura],\"<=\"&H$4)+SUMIFS(Outros[Montante do Cheque],Outros[Código de LR],ResumoDasDespesasMensais[[#This Row],[Código de LR]],Outros[Data de Início do Pedido de Cheque],\">=\"&DATEVALUE(\"1/\"&ResumoDasDespesasMensais[[#Headers],[Maio]]&_xlfn.SINGLE(_ANO)),Outros[Data de Início do Pedido de Cheque],\"<=\"&H$4)","v":{"v":0,"d":"0.00 €"}},{"$f":"SUMIFS(DespesasDetalhadas[Montante do Cheque],DespesasDetalhadas[Código de LR],ResumoDasDespesasMensais[[#This Row],[Código de LR]],DespesasDetalhadas[Data da Fatura],\">=\"&I$3,DespesasDetalhadas[Data da Fatura],\"<=\"&I$4)+SUMIFS(Outros[Montante do Cheque],Outros[Código de LR],ResumoDasDespesasMensais[[#This Row],[Código de LR]],Outros[Data de Início do Pedido de Cheque],\">=\"&DATEVALUE(\"1/\"&ResumoDasDespesasMensais[[#Headers],[Junho]]&_xlfn.SINGLE(_ANO)),Outros[Data de Início do Pedido de Cheque],\"<=\"&I$4)","v":{"v":0,"d":"0.00 €"}},{"$f":"SUMIFS(DespesasDetalhadas[Montante do Cheque],DespesasDetalhadas[Código de LR],ResumoDasDespesasMensais[[#This Row],[Código de LR]],DespesasDetalhadas[Data da Fatura],\">=\"&J$3,DespesasDetalhadas[Data da Fatura],\"<=\"&J$4)+SUMIFS(Outros[Montante do Cheque],Outros[Código de LR],ResumoDasDespesasMensais[[#This Row],[Código de LR]],Outros[Data de Início do Pedido de Cheque],\">=\"&DATEVALUE(\"1/\"&ResumoDasDespesasMensais[[#Headers],[Julho]]&_xlfn.SINGLE(_ANO)),Outros[Data de Início do Pedido de Cheque],\"<=\"&J$4)","v":{"v":0,"d":"0.00 €"}},{"$f":"SUMIFS(DespesasDetalhadas[Montante do Cheque],DespesasDetalhadas[Código de LR],ResumoDasDespesasMensais[[#This Row],[Código de LR]],DespesasDetalhadas[Data da Fatura],\">=\"&K$3,DespesasDetalhadas[Data da Fatura],\"<=\"&K$4)+SUMIFS(Outros[Montante do Cheque],Outros[Código de LR],ResumoDasDespesasMensais[[#This Row],[Código de LR]],Outros[Data de Início do Pedido de Cheque],\">=\"&DATEVALUE(\"1/\"&ResumoDasDespesasMensais[[#Headers],[Agosto]]&_xlfn.SINGLE(_ANO)),Outros[Data de Início do Pedido de Cheque],\"<=\"&K$4)","v":{"v":0,"d":"0.00 €"}},{"$f":"SUMIFS(DespesasDetalhadas[Montante do Cheque],DespesasDetalhadas[Código de LR],ResumoDasDespesasMensais[[#This Row],[Código de LR]],DespesasDetalhadas[Data da Fatura],\">=\"&L$3,DespesasDetalhadas[Data da Fatura],\"<=\"&L$4)+SUMIFS(Outros[Montante do Cheque],Outros[Código de LR],ResumoDasDespesasMensais[[#This Row],[Código de LR]],Outros[Data de Início do Pedido de Cheque],\">=\"&DATEVALUE(\"1/\"&ResumoDasDespesasMensais[[#Headers],[Setembro]]&_xlfn.SINGLE(_ANO)),Outros[Data de Início do Pedido de Cheque],\"<=\"&L$4)","v":{"v":0,"d":"0.00 €"}},{"$f":"SUMIFS(DespesasDetalhadas[Montante do Cheque],DespesasDetalhadas[Código de LR],ResumoDasDespesasMensais[[#This Row],[Código de LR]],DespesasDetalhadas[Data da Fatura],\">=\"&M$3,DespesasDetalhadas[Data da Fatura],\"<=\"&M$4)+SUMIFS(Outros[Montante do Cheque],Outros[Código de LR],ResumoDasDespesasMensais[[#This Row],[Código de LR]],Outros[Data de Início do Pedido de Cheque],\">=\"&DATEVALUE(\"1/\"&ResumoDasDespesasMensais[[#Headers],[Outubro]]&_xlfn.SINGLE(_ANO)),Outros[Data de Início do Pedido de Cheque],\"<=\"&M$4)","v":{"v":0,"d":"0.00 €"}},{"$f":"SUMIFS(DespesasDetalhadas[Montante do Cheque],DespesasDetalhadas[Código de LR],ResumoDasDespesasMensais[[#This Row],[Código de LR]],DespesasDetalhadas[Data da Fatura],\">=\"&N$3,DespesasDetalhadas[Data da Fatura],\"<=\"&N$4)+SUMIFS(Outros[Montante do Cheque],Outros[Código de LR],ResumoDasDespesasMensais[[#This Row],[Código de LR]],Outros[Data de Início do Pedido de Cheque],\">=\"&DATEVALUE(\"1/\"&ResumoDasDespesasMensais[[#Headers],[Novembro]]&_xlfn.SINGLE(_ANO)),Outros[Data de Início do Pedido de Cheque],\"<=\"&N$4)","v":{"v":0,"d":"0.00 €"}},{"$f":"SUMIFS(DespesasDetalhadas[Montante do Cheque],DespesasDetalhadas[Código de LR],ResumoDasDespesasMensais[[#This Row],[Código de LR]],DespesasDetalhadas[Data da Fatura],\">=\"&O$3,DespesasDetalhadas[Data da Fatura],\"<=\"&O$4)+SUMIFS(Outros[Montante do Cheque],Outros[Código de LR],ResumoDasDespesasMensais[[#This Row],[Código de LR]],Outros[Data de Início do Pedido de Cheque],\">=\"&DATEVALUE(\"1/\"&ResumoDasDespesasMensais[[#Headers],[Dezembro]]&_xlfn.SINGLE(_ANO)),Outros[Data de Início do Pedido de Cheque],\"<=\"&O$4)","v":{"v":0,"d":"0.00 €"}},{"$f":"SUM(ResumoDasDespesasMensais[[#This Row],[Janeiro]:[Dezembro]])","v":{"v":0,"d":"0.00 €"}}]
[null,10000,"Marketing",{"$f":"SUMIFS(DespesasDetalhadas[Montante do Cheque],DespesasDetalhadas[Código de LR],ResumoDasDespesasMensais[[#This Row],[Código de LR]],DespesasDetalhadas[Data da Fatura],\">=\"&D$3,DespesasDetalhadas[Data da Fatura],\"<=\"&D$4)+SUMIFS(Outros[Montante do Cheque],Outros[Código de LR],ResumoDasDespesasMensais[[#This Row],[Código de LR]],Outros[Data de Início do Pedido de Cheque],\">=\"&DATEVALUE(\"1/\"&ResumoDasDespesasMensais[[#Headers],[Janeiro]]&_xlfn.SINGLE(_ANO)),Outros[Data de Início do Pedido de Cheque],\"<=\"&D$4)","v":{"v":0,"d":"0.00 €"}},{"$f":"SUMIFS(DespesasDetalhadas[Montante do Cheque],DespesasDetalhadas[Código de LR],ResumoDasDespesasMensais[[#This Row],[Código de LR]],DespesasDetalhadas[Data da Fatura],\">=\"&E$3,DespesasDetalhadas[Data da Fatura],\"<=\"&E$4)+SUMIFS(Outros[Montante do Cheque],Outros[Código de LR],ResumoDasDespesasMensais[[#This Row],[Código de LR]],Outros[Data de Início do Pedido de Cheque],\">=\"&DATEVALUE(\"1/\"&ResumoDasDespesasMensais[[#Headers],[Fevereiro]]&_xlfn.SINGLE(_ANO)),Outros[Data de Início do Pedido de Cheque],\"<=\"&E$4)","v":{"v":0,"d":"0.00 €"}},{"$f":"SUMIFS(DespesasDetalhadas[Montante do Cheque],DespesasDetalhadas[Código de LR],ResumoDasDespesasMensais[[#This Row],[Código de LR]],DespesasDetalhadas[Data da Fatura],\">=\"&F$3,DespesasDetalhadas[Data da Fatura],\"<=\"&F$4)+SUMIFS(Outros[Montante do Cheque],Outros[Código de LR],ResumoDasDespesasMensais[[#This Row],[Código de LR]],Outros[Data de Início do Pedido de Cheque],\">=\"&DATEVALUE(\"1/\"&ResumoDasDespesasMensais[[#Headers],[Março]]&_xlfn.SINGLE(_ANO)),Outros[Data de Início do Pedido de Cheque],\"<=\"&F$4)","v":{"v":0,"d":"0.00 €"}},{"$f":"SUMIFS(DespesasDetalhadas[Montante do Cheque],DespesasDetalhadas[Código de LR],ResumoDasDespesasMensais[[#This Row],[Código de LR]],DespesasDetalhadas[Data da Fatura],\">=\"&G$3,DespesasDetalhadas[Data da Fatura],\"<=\"&G$4)+SUMIFS(Outros[Montante do Cheque],Outros[Código de LR],ResumoDasDespesasMensais[[#This Row],[Código de LR]],Outros[Data de Início do Pedido de Cheque],\">=\"&DATEVALUE(\"1/\"&ResumoDasDespesasMensais[[#Headers],[Abril]]&_xlfn.SINGLE(_ANO)),Outros[Data de Início do Pedido de Cheque],\"<=\"&G$4)","v":{"v":0,"d":"0.00 €"}},{"$f":"SUMIFS(DespesasDetalhadas[Montante do Cheque],DespesasDetalhadas[Código de LR],ResumoDasDespesasMensais[[#This Row],[Código de LR]],DespesasDetalhadas[Data da Fatura],\">=\"&H$3,DespesasDetalhadas[Data da Fatura],\"<=\"&H$4)+SUMIFS(Outros[Montante do Cheque],Outros[Código de LR],ResumoDasDespesasMensais[[#This Row],[Código de LR]],Outros[Data de Início do Pedido de Cheque],\">=\"&DATEVALUE(\"1/\"&ResumoDasDespesasMensais[[#Headers],[Maio]]&_xlfn.SINGLE(_ANO)),Outros[Data de Início do Pedido de Cheque],\"<=\"&H$4)","v":{"v":0,"d":"0.00 €"}},{"$f":"SUMIFS(DespesasDetalhadas[Montante do Cheque],DespesasDetalhadas[Código de LR],ResumoDasDespesasMensais[[#This Row],[Código de LR]],DespesasDetalhadas[Data da Fatura],\">=\"&I$3,DespesasDetalhadas[Data da Fatura],\"<=\"&I$4)+SUMIFS(Outros[Montante do Cheque],Outros[Código de LR],ResumoDasDespesasMensais[[#This Row],[Código de LR]],Outros[Data de Início do Pedido de Cheque],\">=\"&DATEVALUE(\"1/\"&ResumoDasDespesasMensais[[#Headers],[Junho]]&_xlfn.SINGLE(_ANO)),Outros[Data de Início do Pedido de Cheque],\"<=\"&I$4)","v":{"v":0,"d":"0.00 €"}},{"$f":"SUMIFS(DespesasDetalhadas[Montante do Cheque],DespesasDetalhadas[Código de LR],ResumoDasDespesasMensais[[#This Row],[Código de LR]],DespesasDetalhadas[Data da Fatura],\">=\"&J$3,DespesasDetalhadas[Data da Fatura],\"<=\"&J$4)+SUMIFS(Outros[Montante do Cheque],Outros[Código de LR],ResumoDasDespesasMensais[[#This Row],[Código de LR]],Outros[Data de Início do Pedido de Cheque],\">=\"&DATEVALUE(\"1/\"&ResumoDasDespesasMensais[[#Headers],[Julho]]&_xlfn.SINGLE(_ANO)),Outros[Data de Início do Pedido de Cheque],\"<=\"&J$4)","v":{"v":0,"d":"0.00 €"}},{"$f":"SUMIFS(DespesasDetalhadas[Montante do Cheque],DespesasDetalhadas[Código de LR],ResumoDasDespesasMensais[[#This Row],[Código de LR]],DespesasDetalhadas[Data da Fatura],\">=\"&K$3,DespesasDetalhadas[Data da Fatura],\"<=\"&K$4)+SUMIFS(Outros[Montante do Cheque],Outros[Código de LR],ResumoDasDespesasMensais[[#This Row],[Código de LR]],Outros[Data de Início do Pedido de Cheque],\">=\"&DATEVALUE(\"1/\"&ResumoDasDespesasMensais[[#Headers],[Agosto]]&_xlfn.SINGLE(_ANO)),Outros[Data de Início do Pedido de Cheque],\"<=\"&K$4)","v":{"v":0,"d":"0.00 €"}},{"$f":"SUMIFS(DespesasDetalhadas[Montante do Cheque],DespesasDetalhadas[Código de LR],ResumoDasDespesasMensais[[#This Row],[Código de LR]],DespesasDetalhadas[Data da Fatura],\">=\"&L$3,DespesasDetalhadas[Data da Fatura],\"<=\"&L$4)+SUMIFS(Outros[Montante do Cheque],Outros[Código de LR],ResumoDasDespesasMensais[[#This Row],[Código de LR]],Outros[Data de Início do Pedido de Cheque],\">=\"&DATEVALUE(\"1/\"&ResumoDasDespesasMensais[[#Headers],[Setembro]]&_xlfn.SINGLE(_ANO)),Outros[Data de Início do Pedido de Cheque],\"<=\"&L$4)","v":{"v":0,"d":"0.00 €"}},{"$f":"SUMIFS(DespesasDetalhadas[Montante do Cheque],DespesasDetalhadas[Código de LR],ResumoDasDespesasMensais[[#This Row],[Código de LR]],DespesasDetalhadas[Data da Fatura],\">=\"&M$3,DespesasDetalhadas[Data da Fatura],\"<=\"&M$4)+SUMIFS(Outros[Montante do Cheque],Outros[Código de LR],ResumoDasDespesasMensais[[#This Row],[Código de LR]],Outros[Data de Início do Pedido de Cheque],\">=\"&DATEVALUE(\"1/\"&ResumoDasDespesasMensais[[#Headers],[Outubro]]&_xlfn.SINGLE(_ANO)),Outros[Data de Início do Pedido de Cheque],\"<=\"&M$4)","v":{"v":0,"d":"0.00 €"}},{"$f":"SUMIFS(DespesasDetalhadas[Montante do Cheque],DespesasDetalhadas[Código de LR],ResumoDasDespesasMensais[[#This Row],[Código de LR]],DespesasDetalhadas[Data da Fatura],\">=\"&N$3,DespesasDetalhadas[Data da Fatura],\"<=\"&N$4)+SUMIFS(Outros[Montante do Cheque],Outros[Código de LR],ResumoDasDespesasMensais[[#This Row],[Código de LR]],Outros[Data de Início do Pedido de Cheque],\">=\"&DATEVALUE(\"1/\"&ResumoDasDespesasMensais[[#Headers],[Novembro]]&_xlfn.SINGLE(_ANO)),Outros[Data de Início do Pedido de Cheque],\"<=\"&N$4)","v":{"v":0,"d":"0.00 €"}},{"$f":"SUMIFS(DespesasDetalhadas[Montante do Cheque],DespesasDetalhadas[Código de LR],ResumoDasDespesasMensais[[#This Row],[Código de LR]],DespesasDetalhadas[Data da Fatura],\">=\"&O$3,DespesasDetalhadas[Data da Fatura],\"<=\"&O$4)+SUMIFS(Outros[Montante do Cheque],Outros[Código de LR],ResumoDasDespesasMensais[[#This Row],[Código de LR]],Outros[Data de Início do Pedido de Cheque],\">=\"&DATEVALUE(\"1/\"&ResumoDasDespesasMensais[[#Headers],[Dezembro]]&_xlfn.SINGLE(_ANO)),Outros[Data de Início do Pedido de Cheque],\"<=\"&O$4)","v":{"v":0,"d":"0.00 €"}},{"$f":"SUM(ResumoDasDespesasMensais[[#This Row],[Janeiro]:[Dezembro]])","v":{"v":0,"d":"0.00 €"}}]
[null,11000,"Instituições de Caridade",{"$f":"SUMIFS(DespesasDetalhadas[Montante do Cheque],DespesasDetalhadas[Código de LR],ResumoDasDespesasMensais[[#This Row],[Código de LR]],DespesasDetalhadas[Data da Fatura],\">=\"&D$3,DespesasDetalhadas[Data da Fatura],\"<=\"&D$4)+SUMIFS(Outros[Montante do Cheque],Outros[Código de LR],ResumoDasDespesasMensais[[#This Row],[Código de LR]],Outros[Data de Início do Pedido de Cheque],\">=\"&DATEVALUE(\"1/\"&ResumoDasDespesasMensais[[#Headers],[Janeiro]]&_xlfn.SINGLE(_ANO)),Outros[Data de Início do Pedido de Cheque],\"<=\"&D$4)","v":{"v":0,"d":"0.00 €"}},{"$f":"SUMIFS(DespesasDetalhadas[Montante do Cheque],DespesasDetalhadas[Código de LR],ResumoDasDespesasMensais[[#This Row],[Código de LR]],DespesasDetalhadas[Data da Fatura],\">=\"&E$3,DespesasDetalhadas[Data da Fatura],\"<=\"&E$4)+SUMIFS(Outros[Montante do Cheque],Outros[Código de LR],ResumoDasDespesasMensais[[#This Row],[Código de LR]],Outros[Data de Início do Pedido de Cheque],\">=\"&DATEVALUE(\"1/\"&ResumoDasDespesasMensais[[#Headers],[Fevereiro]]&_xlfn.SINGLE(_ANO)),Outros[Data de Início do Pedido de Cheque],\"<=\"&E$4)","v":{"v":0,"d":"0.00 €"}},{"$f":"SUMIFS(DespesasDetalhadas[Montante do Cheque],DespesasDetalhadas[Código de LR],ResumoDasDespesasMensais[[#This Row],[Código de LR]],DespesasDetalhadas[Data da Fatura],\">=\"&F$3,DespesasDetalhadas[Data da Fatura],\"<=\"&F$4)+SUMIFS(Outros[Montante do Cheque],Outros[Código de LR],ResumoDasDespesasMensais[[#This Row],[Código de LR]],Outros[Data de Início do Pedido de Cheque],\">=\"&DATEVALUE(\"1/\"&ResumoDasDespesasMensais[[#Headers],[Março]]&_xlfn.SINGLE(_ANO)),Outros[Data de Início do Pedido de Cheque],\"<=\"&F$4)","v":{"v":0,"d":"0.00 €"}},{"$f":"SUMIFS(DespesasDetalhadas[Montante do Cheque],DespesasDetalhadas[Código de LR],ResumoDasDespesasMensais[[#This Row],[Código de LR]],DespesasDetalhadas[Data da Fatura],\">=\"&G$3,DespesasDetalhadas[Data da Fatura],\"<=\"&G$4)+SUMIFS(Outros[Montante do Cheque],Outros[Código de LR],ResumoDasDespesasMensais[[#This Row],[Código de LR]],Outros[Data de Início do Pedido de Cheque],\">=\"&DATEVALUE(\"1/\"&ResumoDasDespesasMensais[[#Headers],[Abril]]&_xlfn.SINGLE(_ANO)),Outros[Data de Início do Pedido de Cheque],\"<=\"&G$4)","v":{"v":0,"d":"0.00 €"}},{"$f":"SUMIFS(DespesasDetalhadas[Montante do Cheque],DespesasDetalhadas[Código de LR],ResumoDasDespesasMensais[[#This Row],[Código de LR]],DespesasDetalhadas[Data da Fatura],\">=\"&H$3,DespesasDetalhadas[Data da Fatura],\"<=\"&H$4)+SUMIFS(Outros[Montante do Cheque],Outros[Código de LR],ResumoDasDespesasMensais[[#This Row],[Código de LR]],Outros[Data de Início do Pedido de Cheque],\">=\"&DATEVALUE(\"1/\"&ResumoDasDespesasMensais[[#Headers],[Maio]]&_xlfn.SINGLE(_ANO)),Outros[Data de Início do Pedido de Cheque],\"<=\"&H$4)","v":{"v":0,"d":"0.00 €"}},{"$f":"SUMIFS(DespesasDetalhadas[Montante do Cheque],DespesasDetalhadas[Código de LR],ResumoDasDespesasMensais[[#This Row],[Código de LR]],DespesasDetalhadas[Data da Fatura],\">=\"&I$3,DespesasDetalhadas[Data da Fatura],\"<=\"&I$4)+SUMIFS(Outros[Montante do Cheque],Outros[Código de LR],ResumoDasDespesasMensais[[#This Row],[Código de LR]],Outros[Data de Início do Pedido de Cheque],\">=\"&DATEVALUE(\"1/\"&ResumoDasDespesasMensais[[#Headers],[Junho]]&_xlfn.SINGLE(_ANO)),Outros[Data de Início do Pedido de Cheque],\"<=\"&I$4)","v":{"v":0,"d":"0.00 €"}},{"$f":"SUMIFS(DespesasDetalhadas[Montante do Cheque],DespesasDetalhadas[Código de LR],ResumoDasDespesasMensais[[#This Row],[Código de LR]],DespesasDetalhadas[Data da Fatura],\">=\"&J$3,DespesasDetalhadas[Data da Fatura],\"<=\"&J$4)+SUMIFS(Outros[Montante do Cheque],Outros[Código de LR],ResumoDasDespesasMensais[[#This Row],[Código de LR]],Outros[Data de Início do Pedido de Cheque],\">=\"&DATEVALUE(\"1/\"&ResumoDasDespesasMensais[[#Headers],[Julho]]&_xlfn.SINGLE(_ANO)),Outros[Data de Início do Pedido de Cheque],\"<=\"&J$4)","v":{"v":0,"d":"0.00 €"}},{"$f":"SUMIFS(DespesasDetalhadas[Montante do Cheque],DespesasDetalhadas[Código de LR],ResumoDasDespesasMensais[[#This Row],[Código de LR]],DespesasDetalhadas[Data da Fatura],\">=\"&K$3,DespesasDetalhadas[Data da Fatura],\"<=\"&K$4)+SUMIFS(Outros[Montante do Cheque],Outros[Código de LR],ResumoDasDespesasMensais[[#This Row],[Código de LR]],Outros[Data de Início do Pedido de Cheque],\">=\"&DATEVALUE(\"1/\"&ResumoDasDespesasMensais[[#Headers],[Agosto]]&_xlfn.SINGLE(_ANO)),Outros[Data de Início do Pedido de Cheque],\"<=\"&K$4)","v":{"v":0,"d":"0.00 €"}},{"$f":"SUMIFS(DespesasDetalhadas[Montante do Cheque],DespesasDetalhadas[Código de LR],ResumoDasDespesasMensais[[#This Row],[Código de LR]],DespesasDetalhadas[Data da Fatura],\">=\"&L$3,DespesasDetalhadas[Data da Fatura],\"<=\"&L$4)+SUMIFS(Outros[Montante do Cheque],Outros[Código de LR],ResumoDasDespesasMensais[[#This Row],[Código de LR]],Outros[Data de Início do Pedido de Cheque],\">=\"&DATEVALUE(\"1/\"&ResumoDasDespesasMensais[[#Headers],[Setembro]]&_xlfn.SINGLE(_ANO)),Outros[Data de Início do Pedido de Cheque],\"<=\"&L$4)","v":{"v":0,"d":"0.00 €"}},{"$f":"SUMIFS(DespesasDetalhadas[Montante do Cheque],DespesasDetalhadas[Código de LR],ResumoDasDespesasMensais[[#This Row],[Código de LR]],DespesasDetalhadas[Data da Fatura],\">=\"&M$3,DespesasDetalhadas[Data da Fatura],\"<=\"&M$4)+SUMIFS(Outros[Montante do Cheque],Outros[Código de LR],ResumoDasDespesasMensais[[#This Row],[Código de LR]],Outros[Data de Início do Pedido de Cheque],\">=\"&DATEVALUE(\"1/\"&ResumoDasDespesasMensais[[#Headers],[Outubro]]&_xlfn.SINGLE(_ANO)),Outros[Data de Início do Pedido de Cheque],\"<=\"&M$4)","v":{"v":0,"d":"0.00 €"}},{"$f":"SUMIFS(DespesasDetalhadas[Montante do Cheque],DespesasDetalhadas[Código de LR],ResumoDasDespesasMensais[[#This Row],[Código de LR]],DespesasDetalhadas[Data da Fatura],\">=\"&N$3,DespesasDetalhadas[Data da Fatura],\"<=\"&N$4)+SUMIFS(Outros[Montante do Cheque],Outros[Código de LR],ResumoDasDespesasMensais[[#This Row],[Código de LR]],Outros[Data de Início do Pedido de Cheque],\">=\"&DATEVALUE(\"1/\"&ResumoDasDespesasMensais[[#Headers],[Novembro]]&_xlfn.SINGLE(_ANO)),Outros[Data de Início do Pedido de Cheque],\"<=\"&N$4)","v":{"v":0,"d":"0.00 €"}},{"$f":"SUMIFS(DespesasDetalhadas[Montante do Cheque],DespesasDetalhadas[Código de LR],ResumoDasDespesasMensais[[#This Row],[Código de LR]],DespesasDetalhadas[Data da Fatura],\">=\"&O$3,DespesasDetalhadas[Data da Fatura],\"<=\"&O$4)+SUMIFS(Outros[Montante do Cheque],Outros[Código de LR],ResumoDasDespesasMensais[[#This Row],[Código de LR]],Outros[Data de Início do Pedido de Cheque],\">=\"&DATEVALUE(\"1/\"&ResumoDasDespesasMensais[[#Headers],[Dezembro]]&_xlfn.SINGLE(_ANO)),Outros[Data de Início do Pedido de Cheque],\"<=\"&O$4)","v":{"v":0,"d":"0.00 €"}},{"$f":"SUM(ResumoDasDespesasMensais[[#This Row],[Janeiro]:[Dezembro]])","v":{"v":0,"d":"0.00 €"}}]
[null,12000,"Patrocinadores",{"$f":"SUMIFS(DespesasDetalhadas[Montante do Cheque],DespesasDetalhadas[Código de LR],ResumoDasDespesasMensais[[#This Row],[Código de LR]],DespesasDetalhadas[Data da Fatura],\">=\"&D$3,DespesasDetalhadas[Data da Fatura],\"<=\"&D$4)+SUMIFS(Outros[Montante do Cheque],Outros[Código de LR],ResumoDasDespesasMensais[[#This Row],[Código de LR]],Outros[Data de Início do Pedido de Cheque],\">=\"&DATEVALUE(\"1/\"&ResumoDasDespesasMensais[[#Headers],[Janeiro]]&_xlfn.SINGLE(_ANO)),Outros[Data de Início do Pedido de Cheque],\"<=\"&D$4)","v":{"v":0,"d":"0.00 €"}},{"$f":"SUMIFS(DespesasDetalhadas[Montante do Cheque],DespesasDetalhadas[Código de LR],ResumoDasDespesasMensais[[#This Row],[Código de LR]],DespesasDetalhadas[Data da Fatura],\">=\"&E$3,DespesasDetalhadas[Data da Fatura],\"<=\"&E$4)+SUMIFS(Outros[Montante do Cheque],Outros[Código de LR],ResumoDasDespesasMensais[[#This Row],[Código de LR]],Outros[Data de Início do Pedido de Cheque],\">=\"&DATEVALUE(\"1/\"&ResumoDasDespesasMensais[[#Headers],[Fevereiro]]&_xlfn.SINGLE(_ANO)),Outros[Data de Início do Pedido de Cheque],\"<=\"&E$4)","v":{"v":0,"d":"0.00 €"}},{"$f":"SUMIFS(DespesasDetalhadas[Montante do Cheque],DespesasDetalhadas[Código de LR],ResumoDasDespesasMensais[[#This Row],[Código de LR]],DespesasDetalhadas[Data da Fatura],\">=\"&F$3,DespesasDetalhadas[Data da Fatura],\"<=\"&F$4)+SUMIFS(Outros[Montante do Cheque],Outros[Código de LR],ResumoDasDespesasMensais[[#This Row],[Código de LR]],Outros[Data de Início do Pedido de Cheque],\">=\"&DATEVALUE(\"1/\"&ResumoDasDespesasMensais[[#Headers],[Março]]&_xlfn.SINGLE(_ANO)),Outros[Data de Início do Pedido de Cheque],\"<=\"&F$4)","v":{"v":0,"d":"0.00 €"}},{"$f":"SUMIFS(DespesasDetalhadas[Montante do Cheque],DespesasDetalhadas[Código de LR],ResumoDasDespesasMensais[[#This Row],[Código de LR]],DespesasDetalhadas[Data da Fatura],\">=\"&G$3,DespesasDetalhadas[Data da Fatura],\"<=\"&G$4)+SUMIFS(Outros[Montante do Cheque],Outros[Código de LR],ResumoDasDespesasMensais[[#This Row],[Código de LR]],Outros[Data de Início do Pedido de Cheque],\">=\"&DATEVALUE(\"1/\"&ResumoDasDespesasMensais[[#Headers],[Abril]]&_xlfn.SINGLE(_ANO)),Outros[Data de Início do Pedido de Cheque],\"<=\"&G$4)","v":{"v":0,"d":"0.00 €"}},{"$f":"SUMIFS(DespesasDetalhadas[Montante do Cheque],DespesasDetalhadas[Código de LR],ResumoDasDespesasMensais[[#This Row],[Código de LR]],DespesasDetalhadas[Data da Fatura],\">=\"&H$3,DespesasDetalhadas[Data da Fatura],\"<=\"&H$4)+SUMIFS(Outros[Montante do Cheque],Outros[Código de LR],ResumoDasDespesasMensais[[#This Row],[Código de LR]],Outros[Data de Início do Pedido de Cheque],\">=\"&DATEVALUE(\"1/\"&ResumoDasDespesasMensais[[#Headers],[Maio]]&_xlfn.SINGLE(_ANO)),Outros[Data de Início do Pedido de Cheque],\"<=\"&H$4)","v":{"v":0,"d":"0.00 €"}},{"$f":"SUMIFS(DespesasDetalhadas[Montante do Cheque],DespesasDetalhadas[Código de LR],ResumoDasDespesasMensais[[#This Row],[Código de LR]],DespesasDetalhadas[Data da Fatura],\">=\"&I$3,DespesasDetalhadas[Data da Fatura],\"<=\"&I$4)+SUMIFS(Outros[Montante do Cheque],Outros[Código de LR],ResumoDasDespesasMensais[[#This Row],[Código de LR]],Outros[Data de Início do Pedido de Cheque],\">=\"&DATEVALUE(\"1/\"&ResumoDasDespesasMensais[[#Headers],[Junho]]&_xlfn.SINGLE(_ANO)),Outros[Data de Início do Pedido de Cheque],\"<=\"&I$4)","v":{"v":0,"d":"0.00 €"}},{"$f":"SUMIFS(DespesasDetalhadas[Montante do Cheque],DespesasDetalhadas[Código de LR],ResumoDasDespesasMensais[[#This Row],[Código de LR]],DespesasDetalhadas[Data da Fatura],\">=\"&J$3,DespesasDetalhadas[Data da Fatura],\"<=\"&J$4)+SUMIFS(Outros[Montante do Cheque],Outros[Código de LR],ResumoDasDespesasMensais[[#This Row],[Código de LR]],Outros[Data de Início do Pedido de Cheque],\">=\"&DATEVALUE(\"1/\"&ResumoDasDespesasMensais[[#Headers],[Julho]]&_xlfn.SINGLE(_ANO)),Outros[Data de Início do Pedido de Cheque],\"<=\"&J$4)","v":{"v":0,"d":"0.00 €"}},{"$f":"SUMIFS(DespesasDetalhadas[Montante do Cheque],DespesasDetalhadas[Código de LR],ResumoDasDespesasMensais[[#This Row],[Código de LR]],DespesasDetalhadas[Data da Fatura],\">=\"&K$3,DespesasDetalhadas[Data da Fatura],\"<=\"&K$4)+SUMIFS(Outros[Montante do Cheque],Outros[Código de LR],ResumoDasDespesasMensais[[#This Row],[Código de LR]],Outros[Data de Início do Pedido de Cheque],\">=\"&DATEVALUE(\"1/\"&ResumoDasDespesasMensais[[#Headers],[Agosto]]&_xlfn.SINGLE(_ANO)),Outros[Data de Início do Pedido de Cheque],\"<=\"&K$4)","v":{"v":0,"d":"0.00 €"}},{"$f":"SUMIFS(DespesasDetalhadas[Montante do Cheque],DespesasDetalhadas[Código de LR],ResumoDasDespesasMensais[[#This Row],[Código de LR]],DespesasDetalhadas[Data da Fatura],\">=\"&L$3,DespesasDetalhadas[Data da Fatura],\"<=\"&L$4)+SUMIFS(Outros[Montante do Cheque],Outros[Código de LR],ResumoDasDespesasMensais[[#This Row],[Código de LR]],Outros[Data de Início do Pedido de Cheque],\">=\"&DATEVALUE(\"1/\"&ResumoDasDespesasMensais[[#Headers],[Setembro]]&_xlfn.SINGLE(_ANO)),Outros[Data de Início do Pedido de Cheque],\"<=\"&L$4)","v":{"v":0,"d":"0.00 €"}},{"$f":"SUMIFS(DespesasDetalhadas[Montante do Cheque],DespesasDetalhadas[Código de LR],ResumoDasDespesasMensais[[#This Row],[Código de LR]],DespesasDetalhadas[Data da Fatura],\">=\"&M$3,DespesasDetalhadas[Data da Fatura],\"<=\"&M$4)+SUMIFS(Outros[Montante do Cheque],Outros[Código de LR],ResumoDasDespesasMensais[[#This Row],[Código de LR]],Outros[Data de Início do Pedido de Cheque],\">=\"&DATEVALUE(\"1/\"&ResumoDasDespesasMensais[[#Headers],[Outubro]]&_xlfn.SINGLE(_ANO)),Outros[Data de Início do Pedido de Cheque],\"<=\"&M$4)","v":{"v":0,"d":"0.00 €"}},{"$f":"SUMIFS(DespesasDetalhadas[Montante do Cheque],DespesasDetalhadas[Código de LR],ResumoDasDespesasMensais[[#This Row],[Código de LR]],DespesasDetalhadas[Data da Fatura],\">=\"&N$3,DespesasDetalhadas[Data da Fatura],\"<=\"&N$4)+SUMIFS(Outros[Montante do Cheque],Outros[Código de LR],ResumoDasDespesasMensais[[#This Row],[Código de LR]],Outros[Data de Início do Pedido de Cheque],\">=\"&DATEVALUE(\"1/\"&ResumoDasDespesasMensais[[#Headers],[Novembro]]&_xlfn.SINGLE(_ANO)),Outros[Data de Início do Pedido de Cheque],\"<=\"&N$4)","v":{"v":0,"d":"0.00 €"}},{"$f":"SUMIFS(DespesasDetalhadas[Montante do Cheque],DespesasDetalhadas[Código de LR],ResumoDasDespesasMensais[[#This Row],[Código de LR]],DespesasDetalhadas[Data da Fatura],\">=\"&O$3,DespesasDetalhadas[Data da Fatura],\"<=\"&O$4)+SUMIFS(Outros[Montante do Cheque],Outros[Código de LR],ResumoDasDespesasMensais[[#This Row],[Código de LR]],Outros[Data de Início do Pedido de Cheque],\">=\"&DATEVALUE(\"1/\"&ResumoDasDespesasMensais[[#Headers],[Dezembro]]&_xlfn.SINGLE(_ANO)),Outros[Data de Início do Pedido de Cheque],\"<=\"&O$4)","v":{"v":0,"d":"0.00 €"}},{"$f":"SUM(ResumoDasDespesasMensais[[#This Row],[Janeiro]:[Dezembro]])","v":{"v":0,"d":"0.00 €"}}]
[null,"Total",null,{"$f":"SUBTOTAL(109,ResumoDasDespesasMensais[Janeiro])","v":{"v":0,"d":"0.00 €"}},{"$f":"SUBTOTAL(109,ResumoDasDespesasMensais[Fevereiro])","v":{"v":0,"d":"0.00 €"}},{"$f":"SUBTOTAL(109,ResumoDasDespesasMensais[Março])","v":{"v":0,"d":"0.00 €"}},{"$f":"SUBTOTAL(109,ResumoDasDespesasMensais[Abril])","v":{"v":0,"d":"0.00 €"}},{"$f":"SUBTOTAL(109,ResumoDasDespesasMensais[Maio])","v":{"v":0,"d":"0.00 €"}},{"$f":"SUBTOTAL(109,ResumoDasDespesasMensais[Junho])","v":{"v":0,"d":"0.00 €"}},{"$f":"SUBTOTAL(109,ResumoDasDespesasMensais[Julho])","v":{"v":0,"d":"0.00 €"}},{"$f":"SUBTOTAL(109,ResumoDasDespesasMensais[Agosto])","v":{"v":0,"d":"0.00 €"}},{"$f":"SUBTOTAL(109,ResumoDasDespesasMensais[Setembro])","v":{"v":0,"d":"0.00 €"}},{"$f":"SUBTOTAL(109,ResumoDasDespesasMensais[Outubro])","v":{"v":0,"d":"0.00 €"}},{"$f":"SUBTOTAL(109,ResumoDasDespesasMensais[Novembro])","v":{"v":0,"d":"0.00 €"}},{"$f":"SUBTOTAL(109,ResumoDasDespesasMensais[Dezembro])","v":{"v":0,"d":"0.00 €"}},{"$f":"SUBTOTAL(109,ResumoDasDespesasMensais[Total])","v":{"v":0,"d":"0.00 €"}}]

{"sheet":"DESPESAS DETALHADAS","index":2,"n_rows":6,"n_cols":10,"rows_kept":6,"merged":[[1,1,1,9],[2,1,2,5],[2,6,2,9]]}
[null,"RESUMO DAS DESPESAS MENSAIS","DONATIVOS E PATROCÍNIOS"]
[null,"DESPESAS DETALHADAS"]
[null,"A segmentação de dados para filtrar dados por Pedido por está nesta célula e a segmentação de dados para filtrar dados por Beneficiário está na célula à direita.",{"$nulls":4},"A segmentação de dados para filtrar dados por Beneficiário encontra-se nesta célula."]
[null,"Código de LR","Data da Fatura","Fatura n.º","Pedido por","Montante do Cheque","Beneficiário","Uso do Cheque","Método de Distribuição","Data do Ficheiro"]
[null,1000,"Data",100,"Samuel Ferreira",{"v":750.75,"d":"750.75 €"},"Consolidated Messenger ","Mailer","Correio","Data"]
[null,7000,"Data",101,"Tiago Ribeiro",{"v":2500,"d":"2,500.00 €"},"A. Datum Corporation ","2 computadores de secretária","Crédito","Data"]

{"sheet":"DONATIVOS E PATROCÍNIOS","index":3,"n_rows":6,"n_cols":12,"rows_kept":6,"merged":[[1,1,1,11],[2,1,2,5],[2,6,2,11]]}
[null,"DESPESAS DETALHADAS"]
[null,"DONATIVOS E PATROCÍNIOS"]
[null,"A segmentação de dados para filtrar dados por Pedido por está nesta célula e a segmentação de dados para filtrar dados por Beneficiário está na célula à direita.",{"$nulls":4},"A segmentação de dados para filtrar dados por Beneficiário encontra-se nesta célula."]
[null,"Código de LR","Data de Início do Pedido de Cheque","Pedido por","Montante do Cheque","Contributo no Ano Anterior","Beneficiário","Utilizado Para","Aprovado por","Categoria","Método de Distribuição","Data do Ficheiro"]
[null,12000,"Data","Margarida Gouveia",{"v":1000,"d":"1,000.00 €"},{"v":12,"d":"12.00 €"},"School of Fine Art ","Bolsas","Constância Botas","Artes","Cheque","Data"]
[null,11000,"Data","Margarida Gouveia",{"v":2500,"d":"2,500.00 €"},{"v":0,"d":"0.00 €"},"WingTip Toys ","Comunidade","Ana Silva","Comunidade","Cheque","Data"]